Workbook

Sheet Wksh 1 - Market Experience
A1: Press TAB and directional arrow keys to read through the document. If macros are disabled, press and hold the ALT key and press the F, then I, and then N key. After that, select the Enable All Content option by pressing enter. (note that you can also press the C key to select "Enable All Content") Instructions can be found in cells K1 through K4. If screen reader fails to announce a cell after performing a dropdown selection, please press F2 and then ESC to force the screen reader to resume. | B1: Unified Rate Review v6.0 [assistive technology users, please reference cell A1 for instructions] | K1: To add a product to Worksheet 2 - Plan Product Info, select the Add Product button or Ctrl + Shift + P.
K2: To add a plan to Worksheet 2 - Plan Product Info, select the Add Plan button or Ctrl + Shift + L.
B3: Company Legal Name: | C3: Anthem Health Plans of Kentucky, Inc. | K3: To validate, select the Validate button or Ctrl + Shift + I.
B4: HIOS Issuer ID: | C4: 36239 | D4: State: | E4: KY | K4: To finalize, select the Finalize button or Ctrl + Shift + F.
B5: Effective Date of Rate Change(s): | C5: =MAX('Wksh 2 - Plan Product Info'!E19:CL19) -> 2024-01-01 | D5: Market: | E5: Small Group
B8: Market Level Calculations (Same for all Plans)
B11: Section I: Experience Period Data
B12: Experience Period: | D12: 2022-01-01 | E12: to | F12: =EDATE(D12,12)-1 -> 2022-12-31
E13: Total | F13: PMPM
B14: Allowed Claims | E14: 175920117.5 | F14: =E14/E19 -> 620.5141936
B15: Reinsurance | E15: 0 | F15: =E15/E19 -> 0
B16: Incurred Claims in Experience Period | E16: 142498734.3 | F16: =E16/E19 -> 502.6286275
B17: Risk Adjustment | E17: 2204451.74 | F17: =E17/E19 -> 7.775651889
B18: Experience Period Premium | E18: 186849109.1 | F18: =E18/E19 -> 659.0634766
B19: Experience Period Member Months | E19: ='Wksh 2 - Plan Product Info'!D33 -> 283507
B21: Section II: Projections
D22: Year 1 Trend | F22: Year 2 Trend
B23: Benefit Category | C23: Experience Period Index Rate PMPM | D23: Cost | E23: Utilization | F23: Cost | G23: Utilization | H23: Trended EHB Allowed Claims PMPM
B24: Inpatient Hospital | C24: 104.8986045 | D24: 1.035429287 | E24: 1.031940068 | F24: 1.035429287 | G24: 1.031940068 | H24: =PRODUCT(C24:G24) -> 119.762141
B25: Outpatient Hospital | C25: 215.980425 | D25: 1.035429287 | E25: 1.031940068 | F25: 1.035429287 | G25: 1.031940068 | H25: 246.5836247
B26: Professional | C26: 122.1309923 | D26: 1.035429287 | E26: 1.031940068 | F26: 1.035429287 | G26: 1.031940068 | H26: 139.4362603
B27: Other Medical | C27: 11.5782561 | D27: 1.035429287 | E27: 1.031940068 | F27: 1.035429287 | G27: 1.031940068 | H27: 13.21882923
B28: Capitation | C28: 0.0004344997002 | D28: 1.0048604 | E28: 1.0048604 | F28: 1.0048604 | G28: 1.0048604 | H28: 0.0004430088557
B29: Prescription Drug | C29: 159.7112875 | D29: 1.049567917 | E29: 1.1451652 | F29: 1.049567917 | G29: 1.1451652 | H29: 230.7241147
B30: Total | C30: =SUM(C24:C29) -> 614.3 | H30: =SUM(H24:H29) -> 749.725413
B32: Morbidity Adjustment | F32: 1.042
B33: Demographic Shift | F33: 1.01
B34: Plan Design Changes | F34: 1
B35: Other | F35: 1.102701278
B36: Adjusted Trended EHB Allowed Claims PMPM for | D36: =IF(C5<>"",C5,"") -> 2024-01-01 | F36: =H30*PRODUCT(F32:F35) -> 870.06
B38: Manual EHB Allowed Claims PMPM | F38: 0
B39: Applied Credibility % | F39: 1
G41: Projected Period Totals
B42: Projected Index Rate for | D42: =IF(C5<>"",C5,"") -> 2024-01-01 | F42: =ROUND(F39*F36+(1-F39)*F38,2) -> 870.06 | G42: =F42*F48 -> 126280508.4
B43: Reinsurance | F43: 0 | G43: =F43*F48 -> 0
B44: Risk Adjustment Payment/Charge | F44: 41.66564755 | G44: =F44*F48 -> 6047352.085
B45: Exchange User Fees | F45: 0 | G45: =F45*F46*F48 -> 0
B46: Market Adjusted Index Rate | F46: =(F42-F43-F44)/(1-F45) -> 828.3943525 | G46: =F46*F48 -> 120233156.3
B48: Projected Member Months | F48: ='Wksh 2 - Plan Product Info'!D73 -> 145140
B50: Information Not Releasable to the Public Unless Authorized by Law: This information has not been publically disclosed and may be privileged and confidential. It is for internal government use only and must not be disseminated, distributed, or copied to persons not authorized to receive the information. Unauthorized disclosure may result in prosecution to the full extent of the law.

Sheet Wksh 2 - Plan Product Info
A1: Press TAB and directional arrow keys to read through the document. If macros are disabled, press and hold the ALT key and press the F, then I, and then N key. After that, select the Enable All Content option by pressing enter. (note that you can also press the C key to select "Enable All Content") Instructions can be found in cells P1 through P6. If screen reader fails to announce a cell after performing a dropdown selection, please press F2 and then ESC to force the screen reader to resume. | C1: Product-Plan Data Collection [assistive technology users, please reference cell A1 for instructions] | P1: To add a product to Worksheet 2 - Plan Product Info, select the Add Product button or Ctrl + Shift + P.
P2: To add a plan to Worksheet 2 - Plan Product Info, select the Add Plan button or Ctrl + Shift + L.
C3: Company Legal Name: | D3: =IF('Wksh 1 - Market Experience'!C3<>"", 'Wksh 1 - Market Experience'!C3,"") -> Anthem Health Plans of Kentucky, Inc. | P3: To validate, select the Validate button or Ctrl + Shift + I.
C4: HIOS Issuer ID: | D4: =IF('Wksh 1 - Market Experience'!C4<>"", 'Wksh 1 - Market Experience'!C4,"") -> 36239 | E4: State: | F4: =IF('Wksh 1 - Market Experience'!E4<>"",'Wksh 1 - Market Experience'!E4,"") -> KY | P4: To finalize, select the Finalize button or Ctrl + Shift + F.
C5: Effective Date of Rate Change(s): | D5: =IF('Wksh 1 - Market Experience'!C5<>"", 'Wksh 1 - Market Experience'!C5,"") -> 2024-01-01 | E5: Market: | F5: =IF('Wksh 1 - Market Experience'!E5<>"",'Wksh 1 - Market Experience'!E5,"") -> Small Group | P5: To remove a product, navigate to the corresponding Product Name/Product ID field and select the Remove Product button or Ctrl + Shift + Q.
P6: To remove a plan, navigate to the corresponding Plan Name/Plan ID field and select the Remove Plan button or Ctrl + Shift + A.
C7: Product/Plan Level Calculations
B9: Field # | C9: Section I: General Product and Plan Information
B10: 1.1 | C10: Product Name | E10: Terminated Products | F10: PPO On Exchange | P10: PPO Off Exchange | AX10: HMO Off Exchange | BV10: HMO On Exchange | CF10: EPO Off Exchange
B11: 1.2 | C11: Product ID | E11: 36239KY047 | F11: 36239KY098 | P11: 36239KY099 | AX11: 36239KY117 | BV11: 36239KY118 | CF11: 36239KY120
B12: 1.3 | C12: Plan Name | E12: 2022 Experience | F12: Anthem Silver Blue Access PPO 6000/0.2/8500 (SHOP) | G12: Anthem Silver Blue Access PPO 3200EC/0/5600 w/HSA (SHOP) | H12: Anthem Silver Blue Access PPO 3500EC/0/6500 w/HSA (SHOP) | I12: Anthem Silver Blue Access PPO 5000EC/0/6000 w/HSA (SHOP) | J12: Anthem Gold Blue Access PPO 650/0.2/8500 (SHOP) | K12: Anthem Gold Blue Access PPO 1000/0.2/7000 (SHOP) | L12: Anthem Gold Blue Access PPO 1500/0.2/6000 (SHOP) | M12: Anthem Gold Blue Access PPO 2000/0.2/4500 (SHOP) | N12: Anthem Gold Blue Access PPO 2500/0.2/5000 (SHOP) | O12: Anthem Gold Blue Access PPO 3000/0.2/5500 (SHOP) | P12: Anthem Bronze Blue Access PPO 8000/0.5/9000 | Q12: Anthem Bronze Blue Access PPO 6500/0.5/8000 w/HSA | R12: Anthem Bronze Blue Access PPO 6500E/0.4/7500 w/HSA | S12: Anthem Bronze Blue Access PPO 5000/0.5/7500 w/HSA | T12: Anthem Bronze Blue Access PPO 8000E/0/8000 w/HSA | U12: Anthem Silver Blue Access PPO 7000/0.2/8500 | V12: Anthem Silver Blue Access PPO 4000EC/0/5500 w/HSA | W12: Anthem Silver Blue Access PPO 4500/0.2/8500 | X12: Anthem Silver Blue Access PPO 5500/0.2/8000 | Y12: Anthem Silver Blue Access PPO 5000EC/0/6000 w/HSA WH | Z12: Anthem Silver Blue Access PPO 3200EC/0/6250 w/HSA | AA12: Anthem Silver Blue Access PPO 3000/0.3/6500 w/HSA | AB12: Anthem Silver Blue Access PPO 4500E/0.3/7000 w/HSA | AC12: Anthem Silver Blue Access PPO 3500E/0.2/7000 w/HSA | AD12: Anthem Gold Blue Access PPO 1500/0.2/6000 (Grp Conv) | AE12: Anthem Gold Blue Access PPO 3000/0.2/5500 WH | AF12: Anthem Gold Blue Access PPO 1000/0.2/7000 WH | AG12: Anthem Gold Blue Access PPO 1600/0.3/4800 w/HSA | AH12: Anthem Gold Blue Access PPO 0/0.5/8000 | AI12: Anthem Platinum Blue Access PPO 250/0.1/2500 | AJ12: Anthem Platinum Blue Access PPO 500/0/3500 | AK12: Anthem Platinum Blue Access PPO 0/0.1/3000 | AL12: Anthem Platinum Blue Access PPO 0/0.1/5500 | AM12: Anthem Gold Pathway PPO 2500/0.3/5000 | AN12: Anthem Gold Blue Access PPO 1500/0.2/5500 | AO12: Anthem Silver Pathway PPO 6000/0.2/8500 | AP12: Anthem Gold Blue Access PPO 2950/0.2/8000 | AQ12: Anthem Silver Blue Access PPO 2500/0.3/8500 | AR12: Anthem Platinum Blue Access PPO 15/0/3000 | AS12: Anthem Silver Blue Access PPO 3000EC/0/6850 w/HSA | AT12: Anthem Silver Blue Access PPO 3000EC/0.1/6500 w/HSA | AU12: Anthem Gold Blue Access PPO 1500/0.2/3000 | AV12: Anthem Gold Blue Access PPO 500/0.1/3500 | AW12: Anthem Platinum Blue Access PPO 1000/0.1/2500 | AX12: Anthem Bronze Pathway HMO 8000/0.5/9000 | AY12: Anthem Bronze Pathway HMO 6500E/0.4/7500 w/HSA | AZ12: Anthem Bronze Pathway HMO 5000/0.5/7500 w/HSA | BA12: Anthem Bronze Pathway HMO 8000E/0/8000 w/HSA | BB12: Anthem Bronze Pathway HMO 6500/0.5/8000 w/HSA | BC12: Anthem Silver Pathway HMO 7000/0.2/8500 | BD12: Anthem Silver Pathway HMO 4000EC/0/5500 w/HSA | BE12: Anthem Silver Pathway HMO 4500/0.2/8500 | BF12: Anthem Silver Pathway HMO 5500/0.2/8000 | BG12: Anthem Silver Pathway HMO 5000EC/0/6000 w/HSA WH | BH12: Anthem Silver Pathway HMO 3200EC/0/6250 w/HSA | BI12: Anthem Silver Pathway HMO 3000/0.3/6500 w/HSA | BJ12: Anthem Silver Pathway HMO 4500E/0.3/7000 w/HSA | BK12: Anthem Silver Pathway HMO 3500E/0.2/7000 w/HSA | BL12: Anthem Gold Pathway HMO 1000/0.2/7000 WH | BM12: Anthem Gold Pathway HMO 3000/0.2/5500 WH | BN12: Anthem Gold Pathway HMO 0/0.5/8000 | BO12: Anthem Gold Pathway HMO 1600/0.3/4800 w/HSA | BP12: Anthem Platinum Pathway HMO 250/0.1/2500 | BQ12: Anthem Platinum Pathway HMO 500/0/3500 | BR12: Anthem Platinum Pathway HMO 0/0.1/5500 | BS12: Anthem Platinum Pathway HMO 0/0.1/3000 | BT12: Anthem Silver Pathway HMO 2500/0.3/8500 | BU12: Anthem Silver Pathway HMO 3000EC/0/6850 w/HSA | BV12: Anthem Silver Pathway HMO 6000/0.2/8500 (SHOP) | BW12: Anthem Silver Pathway HMO 3200EC/0/5600 w/HSA (SHOP) | BX12: Anthem Silver Pathway HMO 3500EC/0/6500 w/HSA (SHOP) | BY12: Anthem Silver Pathway HMO 5000EC/0/6000 w/HSA (SHOP) | BZ12: Anthem Gold Pathway HMO 650/0.2/8500 (SHOP) | CA12: Anthem Gold Pathway HMO 1000/0.2/7000 (SHOP) | CB12: Anthem Gold Pathway HMO 2000/0.2/4500 (SHOP) | CC12: Anthem Gold Pathway HMO 2500/0.2/5000 (SHOP) | CD12: Anthem Gold Pathway HMO 3000/0.2/5500 (SHOP) | CE12: Anthem Gold Pathway HMO 1500/0.2/6000 (SHOP) | CF12: Anthem Link Silver Pathway EPO 4000EC/0.2/6900 w/HSA | CG12: Anthem Link Platinum Pathway EPO 250/2500 | CH12: Anthem Link Silver Pathway EPO 5000/8700 | CI12: Anthem Link Gold Pathway EPO 2800EC/4000 w/HSA | CJ12: Anthem Link Silver Pathway EPO 5000EC/5500 w/HSA | CK12: Anthem Link Bronze Pathway EPO 6000EC/7000 w/HSA | CL12: Anthem Link Gold Pathway EPO 2500/0.2/5000
B13: 1.4 | C13: Plan ID (Standard Component ID) | E13: 36239KY0470137 | F13: 36239KY0980051 | G13: 36239KY0980052 | H13: 36239KY0980053 | I13: 36239KY0980054 | J13: 36239KY0980045 | K13: 36239KY0980046 | L13: 36239KY0980047 | M13: 36239KY0980048 | N13: 36239KY0980049 | O13: 36239KY0980050 | P13: 36239KY0990238 | Q13: 36239KY0990270 | R13: 36239KY0990273 | S13: 36239KY0990276 | T13: 36239KY0990274 | U13: 36239KY0990220 | V13: 36239KY0990257 | W13: 36239KY0990260 | X13: 36239KY0990263 | Y13: 36239KY0990265 | Z13: 36239KY0990266 | AA13: 36239KY0990269 | AB13: 36239KY0990272 | AC13: 36239KY0990271 | AD13: 36239KY0990237 | AE13: 36239KY0990261 | AF13: 36239KY0990262 | AG13: 36239KY0990275 | AH13: 36239KY0990278 | AI13: 36239KY0990190 | AJ13: 36239KY0990242 | AK13: 36239KY0990277 | AL13: 36239KY0990281 | AM13: 36239KY0990199 | AN13: 36239KY0990165 | AO13: 36239KY0990216 | AP13: 36239KY0990225 | AQ13: 36239KY0990052 | AR13: 36239KY0990234 | AS13: 36239KY0990240 | AT13: 36239KY0990250 | AU13: 36239KY0990246 | AV13: 36239KY0990244 | AW13: 36239KY0990253 | AX13: 36239KY1170073 | AY13: 36239KY1170129 | AZ13: 36239KY1170126 | BA13: 36239KY1170130 | BB13: 36239KY1170132 | BC13: 36239KY1170056 | BD13: 36239KY1170115 | BE13: 36239KY1170117 | BF13: 36239KY1170120 | BG13: 36239KY1170122 | BH13: 36239KY1170123 | BI13: 36239KY1170131 | BJ13: 36239KY1170128 | BK13: 36239KY1170127 | BL13: 36239KY1170118 | BM13: 36239KY1170119 | BN13: 36239KY1170136 | BO13: 36239KY1170125 | BP13: 36239KY1170037 | BQ13: 36239KY1170075 | BR13: 36239KY1170135 | BS13: 36239KY1170133 | BT13: 36239KY1170032 | BU13: 36239KY1170074 | BV13: 36239KY1180033 | BW13: 36239KY1180034 | BX13: 36239KY1180035 | BY13: 36239KY1180036 | BZ13: 36239KY1180028 | CA13: 36239KY1180029 | CB13: 36239KY1180030 | CC13: 36239KY1180031 | CD13: 36239KY1180032 | CE13: 36239KY1180037 | CF13: 36239KY1200003 | CG13: 36239KY1200008 | CH13: 36239KY1200007 | CI13: 36239KY1200010 | CJ13: 36239KY1200002 | CK13: 36239KY1200001 | CL13: 36239KY1200005
B14: 1.5 | C14: Metal | E14: Not Applicable | F14: Silver | G14: Silver | H14: Silver | I14: Silver | J14: Gold | K14: Gold | L14: Gold | M14: Gold | N14: Gold | O14: Gold | P14: Bronze | Q14: Bronze | R14: Bronze | S14: Bronze | T14: Bronze | U14: Silver | V14: Silver | W14: Silver | X14: Silver | Y14: Silver | Z14: Silver | AA14: Silver | AB14: Silver | AC14: Silver | AD14: Gold | AE14: Gold | AF14: Gold | AG14: Gold | AH14: Gold | AI14: Platinum | AJ14: Platinum | AK14: Platinum | AL14: Platinum | AM14: Gold | AN14: Gold | AO14: Silver | AP14: Gold | AQ14: Silver | AR14: Platinum | AS14: Silver | AT14: Silver | AU14: Gold | AV14: Gold | AW14: Platinum | AX14: Bronze | AY14: Bronze | AZ14: Bronze | BA14: Bronze | BB14: Bronze | BC14: Silver | BD14: Silver | BE14: Silver | BF14: Silver | BG14: Silver | BH14: Silver | BI14: Silver | BJ14: Silver | BK14: Silver | BL14: Gold | BM14: Gold | BN14: Gold | BO14: Gold | BP14: Platinum | BQ14: Platinum | BR14: Platinum | BS14: Platinum | BT14: Silver | BU14: Silver | BV14: Silver | BW14: Silver | BX14: Silver | BY14: Silver | BZ14: Gold | CA14: Gold | CB14: Gold | CC14: Gold | CD14: Gold | CE14: Gold | CF14: Silver | CG14: Platinum | CH14: Silver | CI14: Gold | CJ14: Silver | CK14: Bronze | CL14: Gold
B15: 1.6 | C15: AV Metal Value | E15: 0 | F15: 0.7 | G15: 0.713 | H15: 0.691 | I15: 0.695 | J15: 0.806 | K15: 0.802 | L15: 0.797 | M15: 0.807 | N15: 0.794 | O15: 0.783 | P15: 0.611 | Q15: 0.632 | R15: 0.642 | S15: 0.648 | T15: 0.629 | U15: 0.7 | V15: 0.711 | W15: 0.701 | X15: 0.708 | Y15: 0.695 | Z15: 0.699 | AA15: 0.718 | AB15: 0.686 | AC15: 0.713 | AD15: 0.797 | AE15: 0.783 | AF15: 0.802 | AG15: 0.791 | AH15: 0.812 | AI15: 0.895 | AJ15: 0.882 | AK15: 0.916 | AL15: 0.903 | AM15: 0.792 | AN15: 0.81 | AO15: 0.697 | AP15: 0.76 | AQ15: 0.714 | AR15: 0.864 | AS15: 0.67 | AT15: 0.671 | AU15: 0.805 | AV15: 0.802 | AW15: 0.862 | AX15: 0.611 | AY15: 0.642 | AZ15: 0.648 | BA15: 0.629 | BB15: 0.632 | BC15: 0.7 | BD15: 0.711 | BE15: 0.701 | BF15: 0.708 | BG15: 0.695 | BH15: 0.699 | BI15: 0.718 | BJ15: 0.686 | BK15: 0.713 | BL15: 0.802 | BM15: 0.783 | BN15: 0.812 | BO15: 0.791 | BP15: 0.895 | BQ15: 0.882 | BR15: 0.903 | BS15: 0.916 | BT15: 0.714 | BU15: 0.67 | BV15: 0.7 | BW15: 0.713 | BX15: 0.691 | BY15: 0.695 | BZ15: 0.806 | CA15: 0.802 | CB15: 0.807 | CC15: 0.794 | CD15: 0.783 | CE15: 0.797 | CF15: 0.673 | CG15: 0.863 | CH15: 0.674 | CI15: 0.762 | CJ15: 0.679 | CK15: 0.648 | CL15: 0.8
B16: 1.7 | C16: Plan Category | E16: Terminated | F16: Renewing | G16: Renewing | H16: Renewing | I16: Renewing | J16: Renewing | K16: Renewing | L16: Renewing | M16: Renewing | N16: Renewing | O16: Renewing | P16: Renewing | Q16: New | R16: New | S16: New | T16: New | U16: Renewing | V16: Renewing | W16: Renewing | X16: Renewing | Y16: Renewing | Z16: Renewing | AA16: New | AB16: New | AC16: New | AD16: Renewing | AE16: Renewing | AF16: Renewing | AG16: New | AH16: New | AI16: Renewing | AJ16: Renewing | AK16: New | AL16: New | AM16: Terminated | AN16: Terminated | AO16: Terminated | AP16: Terminated | AQ16: Terminated | AR16: Terminated | AS16: Terminated | AT16: Terminated | AU16: Terminated | AV16: Terminated | AW16: Terminated | AX16: Renewing | AY16: New | AZ16: New | BA16: New | BB16: New | BC16: Renewing | BD16: Renewing | BE16: Renewing | BF16: Renewing | BG16: Renewing | BH16: Renewing | BI16: New | BJ16: New | BK16: New | BL16: Renewing | BM16: Renewing | BN16: New | BO16: New | BP16: Renewing | BQ16: Renewing | BR16: New | BS16: New | BT16: Terminated | BU16: Terminated | BV16: Renewing | BW16: Renewing | BX16: Renewing | BY16: Renewing | BZ16: Renewing | CA16: Renewing | CB16: Renewing | CC16: Renewing | CD16: Renewing | CE16: Renewing | CF16: Terminated | CG16: Terminated | CH16: Terminated | CI16: Terminated | CJ16: Terminated | CK16: Terminated | CL16: Terminated
B17: 1.8 | C17: Plan Type | E17: PPO | F17: PPO | G17: PPO | H17: PPO | I17: PPO | J17: PPO | K17: PPO | L17: PPO | M17: PPO | N17: PPO | O17: PPO | P17: PPO | Q17: PPO | R17: PPO | S17: PPO | T17: PPO | U17: PPO | V17: PPO | W17: PPO | X17: PPO | Y17: PPO | Z17: PPO | AA17: PPO | AB17: PPO | AC17: PPO | AD17: PPO | AE17: PPO | AF17: PPO | AG17: PPO | AH17: PPO | AI17: PPO | AJ17: PPO | AK17: PPO | AL17: PPO | AM17: PPO | AN17: PPO | AO17: PPO | AP17: PPO | AQ17: PPO | AR17: PPO | AS17: PPO | AT17: PPO | AU17: PPO | AV17: PPO | AW17: PPO | AX17: HMO | AY17: HMO | AZ17: HMO | BA17: HMO | BB17: HMO | BC17: HMO | BD17: HMO | BE17: HMO | BF17: HMO | BG17: HMO | BH17: HMO | BI17: HMO | BJ17: HMO | BK17: HMO | BL17: HMO | BM17: HMO | BN17: HMO | BO17: HMO | BP17: HMO | BQ17: HMO | BR17: HMO | BS17: HMO | BT17: HMO | BU17: HMO | BV17: HMO | BW17: HMO | BX17: HMO | BY17: HMO | BZ17: HMO | CA17: HMO | CB17: HMO | CC17: HMO | CD17: HMO | CE17: HMO | CF17: EPO | CG17: EPO | CH17: EPO | CI17: EPO | CJ17: EPO | CK17: EPO | CL17: EPO
B18: 1.9 | C18: Exchange Plan? | E18: No | F18: Yes | G18: Yes | H18: Yes | I18: Yes | J18: Yes | K18: Yes | L18: Yes | M18: Yes | N18: Yes | O18: Yes | P18: No | Q18: No | R18: No | S18: No | T18: No | U18: No | V18: No | W18: No | X18: No | Y18: No | Z18: No | AA18: No | AB18: No | AC18: No | AD18: No | AE18: No | AF18: No | AG18: No | AH18: No | AI18: No | AJ18: No | AK18: No | AL18: No | AM18: No | AN18: No | AO18: No | AP18: No | AQ18: No | AR18: No | AS18: No | AT18: No | AU18: No | AV18: No | AW18: No | AX18: No | AY18: No | AZ18: No | BA18: No | BB18: No | BC18: No | BD18: No | BE18: No | BF18: No | BG18: No | BH18: No | BI18: No | BJ18: No | BK18: No | BL18: No | BM18: No | BN18: No | BO18: No | BP18: No | BQ18: No | BR18: No | BS18: No | BT18: No | BU18: No | BV18: Yes | BW18: Yes | BX18: Yes | BY18: Yes | BZ18: Yes | CA18: Yes | CB18: Yes | CC18: Yes | CD18: Yes | CE18: Yes | CF18: No | CG18: No | CH18: No | CI18: No | CJ18: No | CK18: No | CL18: No
B19: 1.10 | C19: Effective Date of Proposed Rates | E19: 2024-01-01 | F19: 2024-01-01 | G19: 2024-01-01 | H19: 2024-01-01 | I19: 2024-01-01 | J19: 2024-01-01 | K19: 2024-01-01 | L19: 2024-01-01 | M19: 2024-01-01 | N19: 2024-01-01 | O19: 2024-01-01 | P19: 2024-01-01 | Q19: 2024-01-01 | R19: 2024-01-01 | S19: 2024-01-01 | T19: 2024-01-01 | U19: 2024-01-01 | V19: 2024-01-01 | W19: 2024-01-01 | X19: 2024-01-01 | Y19: 2024-01-01 | Z19: 2024-01-01 | AA19: 2024-01-01 | AB19: 2024-01-01 | AC19: 2024-01-01 | AD19: 2024-01-01 | AE19: 2024-01-01 | AF19: 2024-01-01 | AG19: 2024-01-01 | AH19: 2024-01-01 | AI19: 2024-01-01 | AJ19: 2024-01-01 | AK19: 2024-01-01 | AL19: 2024-01-01 | AM19: 2024-01-01 | AN19: 2024-01-01 | AO19: 2024-01-01 | AP19: 2024-01-01 | AQ19: 2024-01-01 | AR19: 2024-01-01 | AS19: 2024-01-01 | AT19: 2024-01-01 | AU19: 2024-01-01 | AV19: 2024-01-01 | AW19: 2024-01-01 | AX19: 2024-01-01 | AY19: 2024-01-01 | AZ19: 2024-01-01 | BA19: 2024-01-01 | BB19: 2024-01-01 | BC19: 2024-01-01 | BD19: 2024-01-01 | BE19: 2024-01-01 | BF19: 2024-01-01 | BG19: 2024-01-01 | BH19: 2024-01-01 | BI19: 2024-01-01 | BJ19: 2024-01-01 | BK19: 2024-01-01 | BL19: 2024-01-01 | BM19: 2024-01-01 | BN19: 2024-01-01 | BO19: 2024-01-01 | BP19: 2024-01-01 | BQ19: 2024-01-01 | BR19: 2024-01-01 | BS19: 2024-01-01 | BT19: 2024-01-01 | BU19: 2024-01-01 | BV19: 2024-01-01 | BW19: 2024-01-01 | BX19: 2024-01-01 | BY19: 2024-01-01 | BZ19: 2024-01-01 | CA19: 2024-01-01 | CB19: 2024-01-01 | CC19: 2024-01-01 | CD19: 2024-01-01 | CE19: 2024-01-01 | CF19: 2024-01-01 | CG19: 2024-01-01 | CH19: 2024-01-01 | CI19: 2024-01-01 | CJ19: 2024-01-01 | CK19: 2024-01-01 | CL19: 2024-01-01
B20: 1.11 | C20: Cumulative Rate Change % (over 12 mos prior) | E20: 0 | F20: 0.1011 | G20: 0.1167 | H20: 0.1279 | I20: 0.1311 | J20: 0.1137 | K20: 0.11 | L20: 0.1113 | M20: 0.1082 | N20: 0.1084 | O20: 0.1201 | P20: 0.0902 | Q20: 0 | R20: 0 | S20: 0 | T20: 0 | U20: 0.0829 | V20: 0.1291 | W20: 0.1027 | X20: 0.1012 | Y20: 0.1263 | Z20: 0.1082 | AA20: 0 | AB20: 0 | AC20: 0 | AD20: 0.1073 | AE20: 0.1134 | AF20: 0.1021 | AG20: 0 | AH20: 0 | AI20: 0.1096 | AJ20: 0.1348 | AK20: 0 | AL20: 0 | AM20: 0 | AN20: 0 | AO20: 0 | AP20: 0 | AQ20: 0 | AR20: 0 | AS20: 0 | AT20: 0 | AU20: 0 | AV20: 0 | AW20: 0 | AX20: 0.0926 | AY20: 0 | AZ20: 0 | BA20: 0 | BB20: 0 | BC20: 0.0765 | BD20: 0.1299 | BE20: 0.0975 | BF20: 0 | BG20: 0.1445 | BH20: 0.1118 | BI20: 0 | BJ20: 0 | BK20: 0 | BL20: 0 | BM20: 0.1147 | BN20: 0 | BO20: 0 | BP20: 0.109 | BQ20: 0 | BR20: 0 | BS20: 0 | BT20: 0 | BU20: 0 | BV20: 0.0972 | BW20: 0.121 | BX20: 0.119 | BY20: 0.1333 | BZ20: 0.1203 | CA20: 0.0995 | CB20: 0.1138 | CC20: 0.1054 | CD20: 0.1235 | CE20: 0.1085 | CF20: 0 | CG20: 0 | CH20: 0 | CI20: 0 | CJ20: 0 | CK20: 0 | CL20: 0
B21: 1.12 | C21: Product Rate Increase % | E21: =IF(SUMPRODUCT((E16:E16="Renewing")*((E14:E14="Platinum")+(E14:E14="Gold")+(E14:E14="Silver")+(E14:E14="Bronze")+(E14:E14="Catastrophic")))=0, 0, ROUND(ROUND(SUMPRODUCT(1+E20:E20,E34:E34,E35:E35,--(E16:E16="Renewing")*((E14:E14="Platinum")+(E14:E14="Gold")+(E14:E14="Silver")+(E14:E14="Bronze")+(E14:E14="Catastrophic")))/SUMPRODUCT(E34:E34,E35:E35,--(E16:E16="Renewing")*((E14:E14="Platinum")+(E14:E14="Gold")+(E14:E14="Silver")+(E14:E14="Bronze")+(E14:E14="Catastrophic"))), 4)-1, 4)) -> 0 | F21: =IF(SUMPRODUCT((F16:O16="Renewing")*((F14:O14="Platinum")+(F14:O14="Gold")+(F14:O14="Silver")+(F14:O14="Bronze")+(F14:O14="Catastrophic")))=0, 0, ROUND(ROUND(SUMPRODUCT(1+F20:O20,F34:O34,F35:O35,--(F16:O16="Renewing")*((F14:O14="Platinum")+(F14:O14="Gold")+(F14:O14="Silver")+(F14:O14="Bronze")+(F14:O14="Catastrophic")))/SUMPRODUCT(F34:O34,F35:O35,--(F16:O16="Renewing")*((F14:O14="Platinum")+(F14:O14="Gold")+(F14:O14="Silver")+(F14:O14="Bronze")+(F14:O14="Catastrophic"))), 4)-1, 4)) -> 0.1138 | P21: =IF(SUMPRODUCT((P16:AW16="Renewing")*((P14:AW14="Platinum")+(P14:AW14="Gold")+(P14:AW14="Silver")+(P14:AW14="Bronze")+(P14:AW14="Catastrophic")))=0, 0, ROUND(ROUND(SUMPRODUCT(1+P20:AW20,P34:AW34,P35:AW35,--(P16:AW16="Renewing")*((P14:AW14="Platinum")+(P14:AW14="Gold")+(P14:AW14="Silver")+(P14:AW14="Bronze")+(P14:AW14="Catastrophic")))/SUMPRODUCT(P34:AW34,P35:AW35,--(P16:AW16="Renewing")*((P14:AW14="Platinum")+(P14:AW14="Gold")+(P14:AW14="Silver")+(P14:AW14="Bronze")+(P14:AW14="Catastrophic"))), 4)-1, 4)) -> 0.1123 | AX21: =IF(SUMPRODUCT((AX16:BU16="Renewing")*((AX14:BU14="Platinum")+(AX14:BU14="Gold")+(AX14:BU14="Silver")+(AX14:BU14="Bronze")+(AX14:BU14="Catastrophic")))=0, 0, ROUND(ROUND(SUMPRODUCT(1+AX20:BU20,AX34:BU34,AX35:BU35,--(AX16:BU16="Renewing")*((AX14:BU14="Platinum")+(AX14:BU14="Gold")+(AX14:BU14="Silver")+(AX14:BU14="Bronze")+(AX14:BU14="Catastrophic")))/SUMPRODUCT(AX34:BU34,AX35:BU35,--(AX16:BU16="Renewing")*((AX14:BU14="Platinum")+(AX14:BU14="Gold")+(AX14:BU14="Silver")+(AX14:BU14="Bronze")+(AX14:BU14="Catastrophic"))), 4)-1, 4)) -> 0.108 | BV21: =IF(SUMPRODUCT((BV16:CE16="Renewing")*((BV14:CE14="Platinum")+(BV14:CE14="Gold")+(BV14:CE14="Silver")+(BV14:CE14="Bronze")+(BV14:CE14="Catastrophic")))=0, 0, ROUND(ROUND(SUMPRODUCT(1+BV20:CE20,BV34:CE34,BV35:CE35,--(BV16:CE16="Renewing")*((BV14:CE14="Platinum")+(BV14:CE14="Gold")+(BV14:CE14="Silver")+(BV14:CE14="Bronze")+(BV14:CE14="Catastrophic")))/SUMPRODUCT(BV34:CE34,BV35:CE35,--(BV16:CE16="Renewing")*((BV14:CE14="Platinum")+(BV14:CE14="Gold")+(BV14:CE14="Silver")+(BV14:CE14="Bronze")+(BV14:CE14="Catastrophic"))), 4)-1, 4)) -> 0.1157 | CF21: =IF(SUMPRODUCT((CF16:CL16="Renewing")*((CF14:CL14="Platinum")+(CF14:CL14="Gold")+(CF14:CL14="Silver")+(CF14:CL14="Bronze")+(CF14:CL14="Catastrophic")))=0, 0, ROUND(ROUND(SUMPRODUCT(1+CF20:CL20,CF34:CL34,CF35:CL35,--(CF16:CL16="Renewing")*((CF14:CL14="Platinum")+(CF14:CL14="Gold")+(CF14:CL14="Silver")+(CF14:CL14="Bronze")+(CF14:CL14="Catastrophic")))/SUMPRODUCT(CF34:CL34,CF35:CL35,--(CF16:CL16="Renewing")*((CF14:CL14="Platinum")+(CF14:CL14="Gold")+(CF14:CL14="Silver")+(CF14:CL14="Bronze")+(CF14:CL14="Catastrophic"))), 4)-1, 4)) -> 0
B22: 1.13 | C22: Submission Level Rate Increase % | E22: =IF(SUMPRODUCT((E16:CL16="Renewing")*((E14:CL14="Platinum")+(E14:CL14="Gold")+(E14:CL14="Silver")+(E14:CL14="Bronze")+(E14:CL14="Catastrophic")))=0, 0, ROUND(ROUND(SUMPRODUCT(1+E20:CL20,E34:CL34,E35:CL35,--(E16:CL16="Renewing")*((E14:CL14="Platinum")+(E14:CL14="Gold")+(E14:CL14="Silver")+(E14:CL14="Bronze")+(E14:CL14="Catastrophic")))/SUMPRODUCT(E34:CL34,E35:CL35,--(E16:CL16="Renewing")*((E14:CL14="Platinum")+(E14:CL14="Gold")+(E14:CL14="Silver")+(E14:CL14="Bronze")+(E14:CL14="Catastrophic"))), 4)-1, 4)) -> 0.1135
A24: Worksheet 1 Totals | C24: Section II: Experience Period and Current Plan Level Information
B25: 2.1 | C25: Plan ID (Standard Component ID) | D25: Total | E25: =E13 -> 36239KY0470137 | F25: 36239KY0980051 | G25: 36239KY0980052 | H25: 36239KY0980053 | I25: 36239KY0980054 | J25: 36239KY0980045 | K25: 36239KY0980046 | L25: 36239KY0980047 | M25: 36239KY0980048 | N25: 36239KY0980049 | O25: 36239KY0980050 | P25: 36239KY0990238 | Q25: 36239KY0990270 | R25: 36239KY0990273 | S25: 36239KY0990276 | T25: 36239KY0990274 | U25: 36239KY0990220 | V25: 36239KY0990257 | W25: 36239KY0990260 | X25: 36239KY0990263 | Y25: 36239KY0990265 | Z25: 36239KY0990266 | AA25: 36239KY0990269 | AB25: 36239KY0990272 | AC25: 36239KY0990271 | AD25: 36239KY0990237 | AE25: 36239KY0990261 | AF25: 36239KY0990262 | AG25: 36239KY0990275 | AH25: 36239KY0990278 | AI25: 36239KY0990190 | AJ25: 36239KY0990242 | AK25: =AK13 -> 36239KY0990277 | AL25: 36239KY0990281 | AM25: 36239KY0990199 | AN25: 36239KY0990165 | AO25: 36239KY0990216 | AP25: 36239KY0990225 | AQ25: 36239KY0990052 | AR25: 36239KY0990234 | AS25: 36239KY0990240 | AT25: 36239KY0990250 | AU25: 36239KY0990246 | AV25: 36239KY0990244 | AW25: 36239KY0990253 | AX25: 36239KY1170073 | AY25: 36239KY1170129 | AZ25: 36239KY1170126 | BA25: 36239KY1170130 | BB25: 36239KY1170132 | BC25: 36239KY1170056 | BD25: 36239KY1170115 | BE25: 36239KY1170117 | BF25: 36239KY1170120 | BG25: 36239KY1170122 | BH25: 36239KY1170123 | BI25: 36239KY1170131 | BJ25: 36239KY1170128 | BK25: 36239KY1170127 | BL25: 36239KY1170118 | BM25: 36239KY1170119 | BN25: 36239KY1170136 | BO25: 36239KY1170125 | BP25: 36239KY1170037 | BQ25: =BQ13 -> 36239KY1170075 | BR25: 36239KY1170135 | BS25: 36239KY1170133 | BT25: 36239KY1170032 | BU25: 36239KY1170074 | BV25: 36239KY1180033 | BW25: 36239KY1180034 | BX25: 36239KY1180035 | BY25: 36239KY1180036 | BZ25: 36239KY1180028 | CA25: 36239KY1180029 | CB25: 36239KY1180030 | CC25: 36239KY1180031 | CD25: 36239KY1180032 | CE25: 36239KY1180037 | CF25: 36239KY1200003 | CG25: 36239KY1200008 | CH25: 36239KY1200007 | CI25: 36239KY1200010 | CJ25: 36239KY1200002 | CK25: 36239KY1200001 | CL25: 36239KY1200005
A26: ='Wksh 1 - Market Experience'!E14 -> 175920117.5 | B26: 2.2 | C26: Allowed Claims | D26: =SUM(E26:XFD26) -> 175409385.7 | E26: =79372448.45 -> 79372448.45 | F26: =2801515.69 -> 2801515.69 | G26: =3417040.48 -> 3417040.48 | H26: =3075958.93 -> 3075958.93 | I26: =5080608.07 -> 5080608.07 | J26: =5049398.86 -> 5049398.86 | K26: =10089252.14 -> 10089252.14 | L26: =8195405.69 -> 8195405.69 | M26: =9973823.5 -> 9973823.5 | N26: =6444141.51 -> 6444141.51 | O26: =13074429.98 -> 13074429.98 | P26: =83413.74 -> 83413.74 | Q26: =0 -> 0 | R26: =0 -> 0 | S26: =0 -> 0 | T26: =0 -> 0 | U26: =2523785.46 -> 2523785.46 | V26: =4318394.45 -> 4318394.45 | W26: =2251706.67 -> 2251706.67 | X26: =0 -> 0 | Y26: =0 -> 0 | Z26: =0 -> 0 | AA26: =0 -> 0 | AB26: =0 -> 0 | AC26: =0 -> 0 | AD26: =54518.28 -> 54518.28 | AE26: =0 -> 0 | AF26: =0 -> 0 | AG26: =0 -> 0 | AH26: =0 -> 0 | AI26: =4810700.29 -> 4810700.29 | AJ26: =2344914.61 -> 2344914.61 | AK26: =0 -> 0 | AL26: =0 -> 0 | AM26: =4178.74 -> 4178.74 | AN26: =1964521.84 -> 1964521.84 | AO26: =803.32 -> 803.32 | AP26: =2273997.9 -> 2273997.9 | AQ26: =645095.28 -> 645095.28 | AR26: =235910.91 -> 235910.91 | AS26: =647592.57 -> 647592.57 | AT26: =66130.69 -> 66130.69 | AU26: =892175.34 -> 892175.34 | AV26: =304320.02 -> 304320.02 | AW26: =144204.36 -> 144204.36 | AX26: =58242.57 -> 58242.57 | AY26: =0 -> 0 | AZ26: =0 -> 0 | BA26: =0 -> 0 | BB26: =0 -> 0 | BC26: =139011.6 -> 139011.6 | BD26: =414547.81 -> 414547.81 | BE26: =112167.63 -> 112167.63 | BF26: =0 -> 0 | BG26: =0 -> 0 | BH26: =0 -> 0 | BI26: =0 -> 0 | BJ26: =0 -> 0 | BK26: =0 -> 0 | BL26: =0 -> 0 | BM26: =0 -> 0 | BN26: =0 -> 0 | BO26: =0 -> 0 | BP26: =276237.58 -> 276237.58 | BQ26: =0 -> 0 | BR26: =0 -> 0 | BS26: =0 -> 0 | BT26: =963.73 -> 963.73 | BU26: =15227.42 -> 15227.42 | BV26: =269153.12 -> 269153.12 | BW26: =119616.89 -> 119616.89 | BX26: =20471.2 -> 20471.2 | BY26: =203005.92 -> 203005.92 | BZ26: =1173896.71 -> 1173896.71 | CA26: =92591.68 -> 92591.68 | CB26: =69602.38 -> 69602.38 | CC26: =132812.39 -> 132812.39 | CD26: =1432701.42 -> 1432701.42 | CE26: =528185.54 -> 528185.54 | CF26: =7095.84 -> 7095.84 | CG26: =131208.75 -> 131208.75 | CH26: =21148.78 -> 21148.78 | CI26: =17395.24 -> 17395.24 | CJ26: =17389 -> 17389 | CK26: =2002.64 -> 2002.64 | CL26: =14322.1 -> 14322.1
A27: ='Wksh 1 - Market Experience'!E15 -> 0 | B27: 2.3 | C27: Reinsurance | D27: =SUM(E27:XFD27) -> 0 | E27: =0 -> 0 | F27: =0 -> 0 | G27: =0 -> 0 | H27: =0 -> 0 | I27: =0 -> 0 | J27: =0 -> 0 | K27: =0 -> 0 | L27: =0 -> 0 | M27: =0 -> 0 | N27: =0 -> 0 | O27: =0 -> 0 | P27: =0 -> 0 | Q27: =0 -> 0 | R27: =0 -> 0 | S27: =0 -> 0 | T27: =0 -> 0 | U27: =0 -> 0 | V27: =0 -> 0 | W27: =0 -> 0 | X27: =0 -> 0 | Y27: =0 -> 0 | Z27: =0 -> 0 | AA27: =0 -> 0 | AB27: =0 -> 0 | AC27: =0 -> 0 | AD27: =0 -> 0 | AE27: =0 -> 0 | AF27: =0 -> 0 | AG27: =0 -> 0 | AH27: =0 -> 0 | AI27: =0 -> 0 | AJ27: =0 -> 0 | AK27: =0 -> 0 | AL27: =0 -> 0 | AM27: =0 -> 0 | AN27: =0 -> 0 | AO27: =0 -> 0 | AP27: =0 -> 0 | AQ27: =0 -> 0 | AR27: =0 -> 0 | AS27: =0 -> 0 | AT27: =0 -> 0 | AU27: =0 -> 0 | AV27: =0 -> 0 | AW27: =0 -> 0 | AX27: =0 -> 0 | AY27: =0 -> 0 | AZ27: =0 -> 0 | BA27: =0 -> 0 | BB27: =0 -> 0 | BC27: =0 -> 0 | BD27: =0 -> 0 | BE27: =0 -> 0 | BF27: =0 -> 0 | BG27: =0 -> 0 | BH27: =0 -> 0 | BI27: =0 -> 0 | BJ27: =0 -> 0 | BK27: =0 -> 0 | BL27: =0 -> 0 | BM27: =0 -> 0 | BN27: =0 -> 0 | BO27: =0 -> 0 | BP27: =0 -> 0 | BQ27: =0 -> 0 | BR27: =0 -> 0 | BS27: =0 -> 0 | BT27: =0 -> 0 | BU27: =0 -> 0 | BV27: =0 -> 0 | BW27: =0 -> 0 | BX27: =0 -> 0 | BY27: =0 -> 0 | BZ27: =0 -> 0 | CA27: =0 -> 0 | CB27: =0 -> 0 | CC27: =0 -> 0 | CD27: =0 -> 0 | CE27: =0 -> 0 | CF27: =0 -> 0 | CG27: =0 -> 0 | CH27: =0 -> 0 | CI27: =0 -> 0 | CJ27: =0 -> 0 | CK27: =0 -> 0 | CL27: =0 -> 0
B28: 2.4 | C28: Member Cost Sharing | D28: =SUM(E28:XFD28) -> 33381767.62 | E28: =14323932.82 -> 14323932.82 | F28: =746092.77 -> 746092.77 | G28: =963428.85 -> 963428.85 | H28: =581014.97 -> 581014.97 | I28: =1365839.68 -> 1365839.68 | J28: =931990.7 -> 931990.7 | K28: =1833042.78 -> 1833042.78 | L28: =1462489.96 -> 1462489.96 | M28: =1810828.45 -> 1810828.45 | N28: =1120119.38 -> 1120119.38 | O28: =2643773.77 -> 2643773.77 | P28: =64070.91 -> 64070.91 | Q28: =0 -> 0 | R28: =0 -> 0 | S28: =0 -> 0 | T28: =0 -> 0 | U28: =661053.77 -> 661053.77 | V28: =1003393.97 -> 1003393.97 | W28: =698891.64 -> 698891.64 | X28: =0 -> 0 | Y28: =0 -> 0 | Z28: =0 -> 0 | AA28: =0 -> 0 | AB28: =0 -> 0 | AC28: =0 -> 0 | AD28: =19073.21 -> 19073.21 | AE28: =0 -> 0 | AF28: =0 -> 0 | AG28: =0 -> 0 | AH28: =0 -> 0 | AI28: =313766.38 -> 313766.38 | AJ28: =246780.01 -> 246780.01 | AK28: =0 -> 0 | AL28: =0 -> 0 | AM28: =3536.81 -> 3536.81 | AN28: =432340.82 -> 432340.82 | AO28: =823.09 -> 823.09 | AP28: =428574.8 -> 428574.8 | AQ28: =197884.13 -> 197884.13 | AR28: =15855.2 -> 15855.2 | AS28: =245277.92 -> 245277.92 | AT28: =33363.91 -> 33363.91 | AU28: =120458.17 -> 120458.17 | AV28: =26505.19 -> 26505.19 | AW28: =25437.84 -> 25437.84 | AX28: =27423.22 -> 27423.22 | AY28: =0 -> 0 | AZ28: =0 -> 0 | BA28: =0 -> 0 | BB28: =0 -> 0 | BC28: =67870.72 -> 67870.72 | BD28: =123783.88 -> 123783.88 | BE28: =62083.33 -> 62083.33 | BF28: =0 -> 0 | BG28: =0 -> 0 | BH28: =0 -> 0 | BI28: =0 -> 0 | BJ28: =0 -> 0 | BK28: =0 -> 0 | BL28: =0 -> 0 | BM28: =0 -> 0 | BN28: =0 -> 0 | BO28: =0 -> 0 | BP28: =18521.55 -> 18521.55 | BQ28: =0 -> 0 | BR28: =0 -> 0 | BS28: =0 -> 0 | BT28: =434.75 -> 434.75 | BU28: =5791.33 -> 5791.33 | BV28: =41503.83 -> 41503.83 | BW28: =27302.85 -> 27302.85 | BX28: =10352.97 -> 10352.97 | BY28: =68564.81 -> 68564.81 | BZ28: =51787.49 -> 51787.49 | CA28: =33378.58 -> 33378.58 | CB28: =23272.07 -> 23272.07 | CC28: =36990.66 -> 36990.66 | CD28: =287864.07 -> 287864.07 | CE28: =121628.82 -> 121628.82 | CF28: =5542.98 -> 5542.98 | CG28: =17124.1 -> 17124.1 | CH28: =3255.36 -> 3255.36 | CI28: =6943.44 -> 6943.44 | CJ28: =16648.76 -> 16648.76 | CK28: =1718.15 -> 1718.15 | CL28: =2338 -> 2338
B29: 2.5 | C29: Cost Sharing Reduction | D29: =SUM(E29:XFD29) -> 0 | E29: =0 -> 0 | F29: =0 -> 0 | G29: =0 -> 0 | H29: =0 -> 0 | I29: =0 -> 0 | J29: =0 -> 0 | K29: =0 -> 0 | L29: =0 -> 0 | M29: =0 -> 0 | N29: =0 -> 0 | O29: =0 -> 0 | P29: =0 -> 0 | Q29: =0 -> 0 | R29: =0 -> 0 | S29: =0 -> 0 | T29: =0 -> 0 | U29: =0 -> 0 | V29: =0 -> 0 | W29: =0 -> 0 | X29: =0 -> 0 | Y29: =0 -> 0 | Z29: =0 -> 0 | AA29: =0 -> 0 | AB29: =0 -> 0 | AC29: =0 -> 0 | AD29: =0 -> 0 | AE29: =0 -> 0 | AF29: =0 -> 0 | AG29: =0 -> 0 | AH29: =0 -> 0 | AI29: =0 -> 0 | AJ29: =0 -> 0 | AK29: =0 -> 0 | AL29: =0 -> 0 | AM29: =0 -> 0 | AN29: =0 -> 0 | AO29: =0 -> 0 | AP29: =0 -> 0 | AQ29: =0 -> 0 | AR29: =0 -> 0 | AS29: =0 -> 0 | AT29: =0 -> 0 | AU29: =0 -> 0 | AV29: =0 -> 0 | AW29: =0 -> 0 | AX29: =0 -> 0 | AY29: =0 -> 0 | AZ29: =0 -> 0 | BA29: =0 -> 0 | BB29: =0 -> 0 | BC29: =0 -> 0 | BD29: =0 -> 0 | BE29: =0 -> 0 | BF29: =0 -> 0 | BG29: =0 -> 0 | BH29: =0 -> 0 | BI29: =0 -> 0 | BJ29: =0 -> 0 | BK29: =0 -> 0 | BL29: =0 -> 0 | BM29: =0 -> 0 | BN29: =0 -> 0 | BO29: =0 -> 0 | BP29: =0 -> 0 | BQ29: =0 -> 0 | BR29: =0 -> 0 | BS29: =0 -> 0 | BT29: =0 -> 0 | BU29: =0 -> 0 | BV29: =0 -> 0 | BW29: =0 -> 0 | BX29: =0 -> 0 | BY29: =0 -> 0 | BZ29: =0 -> 0 | CA29: =0 -> 0 | CB29: =0 -> 0 | CC29: =0 -> 0 | CD29: =0 -> 0 | CE29: =0 -> 0 | CF29: =0 -> 0 | CG29: =0 -> 0 | CH29: =0 -> 0 | CI29: =0 -> 0 | CJ29: =0 -> 0 | CK29: =0 -> 0 | CL29: =0 -> 0
A30: ='Wksh 1 - Market Experience'!E16 -> 142498734.3 | B30: 2.6 | C30: Incurred Claims | D30: =D26-D27-D28-D29 -> 142027618.1 | E30: 65048515.63 | F30: 2055422.92 | G30: 2453611.63 | H30: 2494943.96 | I30: 3714768.39 | J30: 4117408.16 | K30: 8256209.36 | L30: 6732915.73 | M30: 8162995.05 | N30: 5324022.13 | O30: 10430656.21 | P30: 19342.83 | Q30: 0 | R30: 0 | S30: 0 | T30: 0 | U30: 1862731.69 | V30: 3315000.48 | W30: 1552815.03 | X30: 0 | Y30: 0 | Z30: 0 | AA30: 0 | AB30: 0 | AC30: 0 | AD30: 35445.07 | AE30: 0 | AF30: 0 | AG30: 0 | AH30: 0 | AI30: 4496933.91 | AJ30: =AJ26-AJ27-AJ28-AJ29 -> 2098134.6 | AK30: 0 | AL30: 0 | AM30: 641.93 | AN30: 1532181.02 | AO30: -19.77 | AP30: 1845423.1 | AQ30: 447211.15 | AR30: 220055.71 | AS30: 402314.65 | AT30: 32766.78 | AU30: 771717.17 | AV30: 277814.83 | AW30: 118766.52 | AX30: 30819.35 | AY30: 0 | AZ30: 0 | BA30: 0 | BB30: 0 | BC30: 71140.88 | BD30: 290763.93 | BE30: 50084.3 | BF30: 0 | BG30: 0 | BH30: 0 | BI30: 0 | BJ30: 0 | BK30: 0 | BL30: 0 | BM30: 0 | BN30: 0 | BO30: 0 | BP30: =BP26-BP27-BP28-BP29 -> 257716.03 | BQ30: 0 | BR30: 0 | BS30: 0 | BT30: 528.98 | BU30: 9436.09 | BV30: 227649.29 | BW30: 92314.04 | BX30: 10118.23 | BY30: 134441.11 | BZ30: 1122109.22 | CA30: 59213.1 | CB30: 46330.31 | CC30: 95821.73 | CD30: 1144837.35 | CE30: 406556.72 | CF30: 1552.86 | CG30: 114084.65 | CH30: 17893.42 | CI30: 10451.8 | CJ30: 740.24 | CK30: 284.49 | CL30: 11984.1
A31: ='Wksh 1 - Market Experience'!E17 -> 2204451.74 | B31: 2.7 | C31: Risk Adjustment Transfer Amount | D31: =SUM(E31:XFD31) -> 2204451.74 | E31: =0 -> 0 | F31: =-213357.66 -> -213357.66 | G31: =-148625.53 -> -148625.53 | H31: =327878.39 -> 327878.39 | I31: =945491.37 -> 945491.37 | J31: =-215464.88 -> -215464.88 | K31: =252605.92 -> 252605.92 | L31: =-1502.16 -> -1502.16 | M31: =755079.01 -> 755079.01 | N31: =688533.59 -> 688533.59 | O31: =-49655.85 -> -49655.85 | P31: =-166905.62 -> -166905.62 | Q31: =0 -> 0 | R31: =0 -> 0 | S31: =0 -> 0 | T31: =0 -> 0 | U31: =-266871.05 -> -266871.05 | V31: =564202.71 -> 564202.71 | W31: =-254607.05 -> -254607.05 | X31: =0 -> 0 | Y31: =0 -> 0 | Z31: =0 -> 0 | AA31: =0 -> 0 | AB31: =0 -> 0 | AC31: =0 -> 0 | AD31: =-18719.7 -> -18719.7 | AE31: =0 -> 0 | AF31: =0 -> 0 | AG31: =0 -> 0 | AH31: =0 -> 0 | AI31: =934209.65 -> 934209.65 | AJ31: =-326367.2 -> -326367.2 | AK31: =0 -> 0 | AL31: =0 -> 0 | AM31: =-10007.03 -> -10007.03 | AN31: =114870.35 -> 114870.35 | AO31: =-522 -> -522 | AP31: =9580.35 -> 9580.35 | AQ31: =-180847.07 -> -180847.07 | AR31: =144177.54 -> 144177.54 | AS31: =-15997.75 -> -15997.75 | AT31: =-5883.92 -> -5883.92 | AU31: =157108.41 -> 157108.41 | AV31: =31358.09 -> 31358.09 | AW31: =-127447.02 -> -127447.02 | AX31: =-81142.59 -> -81142.59 | AY31: =0 -> 0 | AZ31: =0 -> 0 | BA31: =0 -> 0 | BB31: =0 -> 0 | BC31: =-234118.8 -> -234118.8 | BD31: =-97296.99 -> -97296.99 | BE31: =-170591.1 -> -170591.1 | BF31: =0 -> 0 | BG31: =0 -> 0 | BH31: =0 -> 0 | BI31: =0 -> 0 | BJ31: =0 -> 0 | BK31: =0 -> 0 | BL31: =0 -> 0 | BM31: =0 -> 0 | BN31: =0 -> 0 | BO31: =0 -> 0 | BP31: =169262.46 -> 169262.46 | BQ31: =0 -> 0 | BR31: =0 -> 0 | BS31: =0 -> 0 | BT31: =-10392.89 -> -10392.89 | BU31: =-8913.69 -> -8913.69 | BV31: =-102832.03 -> -102832.03 | BW31: =-55072.93 -> -55072.93 | BX31: =-5257.83 -> -5257.83 | BY31: =29713.21 -> 29713.21 | BZ31: =210600.88 -> 210600.88 | CA31: =-150649.1 -> -150649.1 | CB31: =-42034.87 -> -42034.87 | CC31: =43263.78 -> 43263.78 | CD31: =-121459.76 -> -121459.76 | CE31: =10668.67 -> 10668.67 | CF31: =-41980.96 -> -41980.96 | CG31: =-58127.34 -> -58127.34 | CH31: =-6832.57 -> -6832.57 | CI31: =-16554.54 -> -16554.54 | CJ31: =70791.5 -> 70791.5 | CK31: =-15722.24 -> -15722.24 | CL31: =-33182.42 -> -33182.42
A32: ='Wksh 1 - Market Experience'!E18 -> 186849109.1 | B32: 2.8 | C32: Premium | D32: =SUM(E32:XFD32) -> 186827566.2 | E32: =92177924.11 -> 92177924.11 | F32: =3177673.61 -> 3177673.61 | G32: =3482237.68 -> 3482237.68 | H32: =2170800.91 -> 2170800.91 | I32: =4525758.9 -> 4525758.9 | J32: =5836636.52 -> 5836636.52 | K32: =11340309.46 -> 11340309.46 | L32: =9024952.1 -> 9024952.1 | M32: =10466747.87 -> 10466747.87 | N32: =5381541 -> 5381541 | O32: =11773055.01 -> 11773055.01 | P32: =298496.04 -> 298496.04 | Q32: =0 -> 0 | R32: =0 -> 0 | S32: =0 -> 0 | T32: =0 -> 0 | U32: =2317752.87 -> 2317752.87 | V32: =3220297.99 -> 3220297.99 | W32: =3086605.41 -> 3086605.41 | X32: =0 -> 0 | Y32: =0 -> 0 | Z32: =0 -> 0 | AA32: =0 -> 0 | AB32: =0 -> 0 | AC32: =0 -> 0 | AD32: =64051.53 -> 64051.53 | AE32: =0 -> 0 | AF32: =0 -> 0 | AG32: =0 -> 0 | AH32: =0 -> 0 | AI32: =3671132 -> 3671132 | AJ32: =2689611.18 -> 2689611.18 | AK32: =0 -> 0 | AL32: =0 -> 0 | AM32: =21485.29 -> 21485.29 | AN32: =2533746.05 -> 2533746.05 | AO32: =797.39 -> 797.39 | AP32: =1764170.81 -> 1764170.81 | AQ32: =792802.14 -> 792802.14 | AR32: =124055.89 -> 124055.89 | AS32: =805508.56 -> 805508.56 | AT32: =91563.05 -> 91563.05 | AU32: =526579.38 -> 526579.38 | AV32: =152264.58 -> 152264.58 | AW32: =267477.99 -> 267477.99 | AX32: =116056.82 -> 116056.82 | AY32: =0 -> 0 | AZ32: =0 -> 0 | BA32: =0 -> 0 | BB32: =0 -> 0 | BC32: =354059.49 -> 354059.49 | BD32: =477298.35 -> 477298.35 | BE32: =268697.25 -> 268697.25 | BF32: =0 -> 0 | BG32: =0 -> 0 | BH32: =0 -> 0 | BI32: =0 -> 0 | BJ32: =0 -> 0 | BK32: =0 -> 0 | BL32: =0 -> 0 | BM32: =0 -> 0 | BN32: =0 -> 0 | BO32: =0 -> 0 | BP32: =151855.34 -> 151855.34 | BQ32: =0 -> 0 | BR32: =0 -> 0 | BS32: =0 -> 0 | BT32: =12477.27 -> 12477.27 | BU32: =11918.9 -> 11918.9 | BV32: =158751.4 -> 158751.4 | BW32: =174625.56 -> 174625.56 | BX32: =51657.32 -> 51657.32 | BY32: =176877.89 -> 176877.89 | BZ32: =205689.19 -> 205689.19 | CA32: =234159.49 -> 234159.49 | CB32: =140967.54 -> 140967.54 | CC32: =220801.74 -> 220801.74 | CD32: =1313084.23 -> 1313084.23 | CE32: =569962.24 -> 569962.24 | CF32: =52655.95 -> 52655.95 | CG32: =216946.13 -> 216946.13 | CH32: =19065.22 -> 19065.22 | CI32: =34327.41 -> 34327.41 | CJ32: =7483.66 -> 7483.66 | CK32: =23086.96 -> 23086.96 | CL32: =49025.56 -> 49025.56
A33: ='Wksh 1 - Market Experience'!E19 -> 283507 | B33: 2.9 | C33: Experience Period Member Months | D33: =SUM(E33:XFD33) -> 283507 | E33: =146757 -> 146757 | F33: =4872 -> 4872 | G33: =5865 -> 5865 | H33: =3592 -> 3592 | I33: =7793 -> 7793 | J33: =7662 -> 7662 | K33: =14718 -> 14718 | L33: =11968 -> 11968 | M33: =14490 -> 14490 | N33: =7978 -> 7978 | O33: =17498 -> 17498 | P33: =548 -> 548 | Q33: =0 -> 0 | R33: =0 -> 0 | S33: =0 -> 0 | T33: =0 -> 0 | U33: =3581 -> 3581 | V33: =5214 -> 5214 | W33: =5073 -> 5073 | X33: =0 -> 0 | Y33: =0 -> 0 | Z33: =0 -> 0 | AA33: =0 -> 0 | AB33: =0 -> 0 | AC33: =0 -> 0 | AD33: =93 -> 93 | AE33: =0 -> 0 | AF33: =0 -> 0 | AG33: =0 -> 0 | AH33: =0 -> 0 | AI33: =4228 -> 4228 | AJ33: =3095 -> 3095 | AK33: =0 -> 0 | AL33: =0 -> 0 | AM33: =45 -> 45 | AN33: =2931 -> 2931 | AO33: =1 -> 1 | AP33: =2601 -> 2601 | AQ33: =1188 -> 1188 | AR33: =165 -> 165 | AS33: =1337 -> 1337 | AT33: =158 -> 158 | AU33: =759 -> 759 | AV33: =201 -> 201 | AW33: =288 -> 288 | AX33: =180 -> 180 | AY33: =0 -> 0 | AZ33: =0 -> 0 | BA33: =0 -> 0 | BB33: =0 -> 0 | BC33: =676 -> 676 | BD33: =830 -> 830 | BE33: =495 -> 495 | BF33: =0 -> 0 | BG33: =0 -> 0 | BH33: =0 -> 0 | BI33: =0 -> 0 | BJ33: =0 -> 0 | BK33: =0 -> 0 | BL33: =0 -> 0 | BM33: =0 -> 0 | BN33: =0 -> 0 | BO33: =0 -> 0 | BP33: =236 -> 236 | BQ33: =0 -> 0 | BR33: =0 -> 0 | BS33: =0 -> 0 | BT33: =26 -> 26 | BU33: =30 -> 30 | BV33: =279 -> 279 | BW33: =294 -> 294 | BX33: =130 -> 130 | BY33: =421 -> 421 | BZ33: =272 -> 272 | CA33: =358 -> 358 | CB33: =255 -> 255 | CC33: =367 -> 367 | CD33: =2396 -> 2396 | CE33: =944 -> 944 | CF33: =65 -> 65 | CG33: =338 -> 338 | CH33: =24 -> 24 | CI33: =50 -> 50 | CJ33: =12 -> 12 | CK33: =49 -> 49 | CL33: =81 -> 81
B34: 2.10 | C34: Current Enrollment | D34: =SUM(E34:XFD34) -> 11984 | E34: =0 -> 0 | F34: =343 -> 343 | G34: =560 -> 560 | H34: =312 -> 312 | I34: =711 -> 711 | J34: =707 -> 707 | K34: =1244 -> 1244 | L34: =1335 -> 1335 | M34: =1361 -> 1361 | N34: =844 -> 844 | O34: =1493 -> 1493 | P34: =69 -> 69 | Q34: =0 -> 0 | R34: =0 -> 0 | S34: =0 -> 0 | T34: =0 -> 0 | U34: =270 -> 270 | V34: =456 -> 456 | W34: =568 -> 568 | X34: =31 -> 31 | Y34: =19 -> 19 | Z34: =35 -> 35 | AA34: =0 -> 0 | AB34: =0 -> 0 | AC34: =0 -> 0 | AD34: =9 -> 9 | AE34: =8 -> 8 | AF34: =3 -> 3 | AG34: =0 -> 0 | AH34: =0 -> 0 | AI34: =511 -> 511 | AJ34: =333 -> 333 | AK34: =0 -> 0 | AL34: =0 -> 0 | AM34: =0 -> 0 | AN34: =0 -> 0 | AO34: =0 -> 0 | AP34: =0 -> 0 | AQ34: =0 -> 0 | AR34: =0 -> 0 | AS34: =0 -> 0 | AT34: =0 -> 0 | AU34: =0 -> 0 | AV34: =0 -> 0 | AW34: =0 -> 0 | AX34: =19 -> 19 | AY34: =0 -> 0 | AZ34: =0 -> 0 | BA34: =0 -> 0 | BB34: =0 -> 0 | BC34: =30 -> 30 | BD34: =54 -> 54 | BE34: =46 -> 46 | BF34: =0 -> 0 | BG34: =11 -> 11 | BH34: =20 -> 20 | BI34: =0 -> 0 | BJ34: =0 -> 0 | BK34: =0 -> 0 | BL34: =0 -> 0 | BM34: =17 -> 17 | BN34: =0 -> 0 | BO34: =0 -> 0 | BP34: =28 -> 28 | BQ34: =0 -> 0 | BR34: =0 -> 0 | BS34: =0 -> 0 | BT34: =0 -> 0 | BU34: =0 -> 0 | BV34: =24 -> 24 | BW34: =39 -> 39 | BX34: =20 -> 20 | BY34: =29 -> 29 | BZ34: =21 -> 21 | CA34: =38 -> 38 | CB34: =32 -> 32 | CC34: =71 -> 71 | CD34: =196 -> 196 | CE34: =67 -> 67 | CF34: =0 -> 0 | CG34: =0 -> 0 | CH34: =0 -> 0 | CI34: =0 -> 0 | CJ34: =0 -> 0 | CK34: =0 -> 0 | CL34: =0 -> 0
B35: 2.11 | C35: Current Premium PMPM | D35: =SUMPRODUCT(E35:XFD35,E34:XFD34)/D34 -> 741.4752587 | E35: =0 -> 0 | F35: =696.81 -> 696.81 | G35: =655.71 -> 655.71 | H35: =651.74 -> 651.74 | I35: =629.27 -> 629.27 | J35: =788.1 -> 788.1 | K35: =789.58 -> 789.58 | L35: =805.61 -> 805.61 | M35: =778.22 -> 778.22 | N35: =725.24 -> 725.24 | O35: =745.28 -> 745.28 | P35: =580.52 -> 580.52 | Q35: =0 -> 0 | R35: =0 -> 0 | S35: =0 -> 0 | T35: =0 -> 0 | U35: =741.41 -> 741.41 | V35: =673.3 -> 673.3 | W35: =684.43 -> 684.43 | X35: =682.34 -> 682.34 | Y35: =595.95 -> 595.95 | Z35: =601.85 -> 601.85 | AA35: =0 -> 0 | AB35: =0 -> 0 | AC35: =0 -> 0 | AD35: =666.87 -> 666.87 | AE35: =514.03 -> 514.03 | AF35: =547.15 -> 547.15 | AG35: =0 -> 0 | AH35: =0 -> 0 | AI35: =882.25 -> 882.25 | AJ35: =914.42 -> 914.42 | AK35: =0 -> 0 | AL35: =0 -> 0 | AM35: =0 -> 0 | AN35: =0 -> 0 | AO35: =0 -> 0 | AP35: =0 -> 0 | AQ35: =0 -> 0 | AR35: =0 -> 0 | AS35: =0 -> 0 | AT35: =0 -> 0 | AU35: =0 -> 0 | AV35: =0 -> 0 | AW35: =0 -> 0 | AX35: =620.71 -> 620.71 | AY35: =0 -> 0 | AZ35: =0 -> 0 | BA35: =0 -> 0 | BB35: =0 -> 0 | BC35: =603.3 -> 603.3 | BD35: =613.58 -> 613.58 | BE35: =625.72 -> 625.72 | BF35: =0 -> 0 | BG35: =473.76 -> 473.76 | BH35: =461.1 -> 461.1 | BI35: =0 -> 0 | BJ35: =0 -> 0 | BK35: =0 -> 0 | BL35: =0 -> 0 | BM35: =692.53 -> 692.53 | BN35: =0 -> 0 | BO35: =0 -> 0 | BP35: =681.5 -> 681.5 | BQ35: =0 -> 0 | BR35: =0 -> 0 | BS35: =0 -> 0 | BT35: =0 -> 0 | BU35: =0 -> 0 | BV35: =624.73 -> 624.73 | BW35: =621.9 -> 621.9 | BX35: =443.03 -> 443.03 | BY35: =470.47 -> 470.47 | BZ35: =828.67 -> 828.67 | CA35: =664.99 -> 664.99 | CB35: =577.99 -> 577.99 | CC35: =608.21 -> 608.21 | CD35: =646.71 -> 646.71 | CE35: =647.85 -> 647.85 | CF35: =0 -> 0 | CG35: =0 -> 0 | CH35: =0 -> 0 | CI35: =0 -> 0 | CJ35: =0 -> 0 | CK35: =0 -> 0 | CL35: =0 -> 0
B36: 2.12 | C36: Loss Ratio | D36: =D30/(D31+D32) -> 0.7513415961 | E36: 0.7056843193 | F36: 0.6933886113 | G36: 0.7360219244 | H36: 0.9985050743 | I36: 0.6789615182 | J36: 0.7324821983 | K36: 0.7121771435 | L36: 0.7461575977 | M36: 0.7274212245 | N36: 0.877093362 | O36: 0.8897296823 | P36: 0.1469926914 | U36: 0.9082589118 | V36: 0.8759413045 | W36: 0.5483107095 | AD36: 0.7819024734 | AI36: 0.9764604348 | AJ36: =AJ30/(AJ31+AJ32) -> 0.8878197164 | AM36: 0.05592572393 | AN36: 0.5784835509 | AO36: -0.0717890991 | AP36: 1.040406987 | AQ36: 0.7307908242 | AR36: 0.8203888307 | AS36: 0.5095745934 | AT36: 0.3824359561 | AU36: 1.128756695 | AV36: 1.512965855 | AW36: 0.848144664 | AX36: 0.8827160158 | BC36: 0.5931338231 | BD36: 0.7651654984 | BE36: 0.5105113186 | BP36: =BP30/(BP31+BP32) -> 0.8025591543 | BT36: 0.2537828995 | BU36: 3.139910356 | BV36: 4.071027445 | BW36: 0.7721623523 | BX36: 0.2180676986 | BY36: 0.650759447 | BZ36: 2.695498406 | CA36: 0.7090506942 | CB36: 0.4683014216 | CC36: 0.3628710405 | CD36: 0.9607366908 | CE36: 0.7001982034 | CF36: 0.1454671152 | CG36: 0.7183321948 | CH36: 1.462759091 | CI36: 0.5880760958 | CJ36: 0.009456895393 | CK36: 0.03862875982 | CL36: 0.7564220224
C37: Per Member Per Month
B38: 2.13 | C38: Allowed Claims | D38: =D26/D33 -> 618.7127151 | E38: 540.842675 | F38: 575.0237459 | G38: 582.6155976 | H38: 856.336005 | I38: 651.9450879 | J38: 659.0183842 | K38: 685.50429 | L38: 684.776545 | M38: 688.3246032 | N38: 807.7389709 | O38: 747.1956784 | P38: 152.214854 | U38: 704.7711421 | V38: 828.2306195 | W38: 443.8609639 | AD38: 586.2180645 | AI38: 1137.819368 | AJ38: =AJ26/AJ33 -> 757.6460775 | AM38: 92.86088889 | AN38: 670.2565131 | AO38: 803.32 | AP38: 874.278316 | AQ38: 543.0094949 | AR38: 1429.763091 | AS38: 484.3624308 | AT38: 418.5486709 | AU38: 1175.461581 | AV38: 1514.02995 | AW38: 500.7095833 | AX38: 323.5698333 | BC38: 205.6384615 | BD38: 499.4551928 | BE38: 226.6012727 | BP38: =BP26/BP33 -> 1170.49822 | BT38: 37.06653846 | BU38: 507.5806667 | BV38: 964.7065233 | BW38: 406.8601701 | BX38: 157.4707692 | BY38: 482.1993349 | BZ38: 4315.796728 | CA38: 258.6359777 | CB38: 272.9505098 | CC38: 361.8866213 | CD38: 597.9555175 | CE38: 559.5185805 | CF38: 109.1667692 | CG38: 388.191568 | CH38: 881.1991667 | CI38: 347.9048 | CJ38: 1449.083333 | CK38: 40.87020408 | CL38: 176.8160494
B39: 2.14 | C39: Reinsurance | D39: =D27/D33 -> 0 | E39: 0 | F39: 0 | G39: 0 | H39: 0 | I39: 0 | J39: 0 | K39: 0 | L39: 0 | M39: 0 | N39: 0 | O39: 0 | P39: 0 | U39: 0 | V39: 0 | W39: 0 | AD39: 0 | AI39: 0 | AJ39: =AJ27/AJ33 -> 0 | AM39: 0 | AN39: 0 | AO39: 0 | AP39: 0 | AQ39: 0 | AR39: 0 | AS39: 0 | AT39: 0 | AU39: 0 | AV39: 0 | AW39: 0 | AX39: 0 | BC39: 0 | BD39: 0 | BE39: 0 | BP39: =BP27/BP33 -> 0 | BT39: 0 | BU39: 0 | BV39: 0 | BW39: 0 | BX39: 0 | BY39: 0 | BZ39: 0 | CA39: 0 | CB39: 0 | CC39: 0 | CD39: 0 | CE39: 0 | CF39: 0 | CG39: 0 | CH39: 0 | CI39: 0 | CJ39: 0 | CK39: 0 | CL39: 0
B40: 2.15 | C40: Member Cost Sharing | D40: =D28/D33 -> 117.7458321 | E40: 97.6030637 | F40: 153.1389101 | G40: 164.2674936 | H40: 161.7524972 | I40: 175.2649403 | J40: 121.6380449 | K40: 124.5442845 | L40: 122.2000301 | M40: 124.9709075 | N40: 140.4010253 | O40: 151.0900543 | P40: 116.917719 | U40: 184.6003267 | V40: 192.4422651 | W40: 137.7669308 | AD40: 205.0882796 | AI40: 74.21153737 | AJ40: =AJ28/AJ33 -> 79.73505977 | AM40: 78.59577778 | AN40: 147.5062504 | AO40: 823.09 | AP40: 164.7730873 | AQ40: 166.569133 | AR40: 96.09212121 | AS40: 183.4539417 | AT40: 211.1639873 | AU40: 158.7064163 | AV40: 131.8666169 | AW40: 88.32583333 | AX40: 152.3512222 | BC40: 100.4004734 | BD40: 149.1372048 | BE40: 125.4208687 | BP40: =BP28/BP33 -> 78.48114407 | BT40: 16.72115385 | BU40: 193.0443333 | BV40: 148.7592473 | BW40: 92.86683673 | BX40: 79.63823077 | BY40: 162.8617815 | BZ40: 190.3951838 | CA40: 93.23625698 | CB40: 91.26301961 | CC40: 100.7919891 | CD40: 120.1436018 | CE40: 128.844089 | CF40: 85.27661538 | CG40: 50.66301775 | CH40: 135.64 | CI40: 138.8688 | CJ40: 1387.396667 | CK40: 35.06428571 | CL40: 28.86419753
B41: 2.16 | C41: Cost Sharing Reduction | D41: =D29/D33 -> 0 | E41: 0 | F41: 0 | G41: 0 | H41: 0 | I41: 0 | J41: 0 | K41: 0 | L41: 0 | M41: 0 | N41: 0 | O41: 0 | P41: 0 | U41: 0 | V41: 0 | W41: 0 | AD41: 0 | AI41: 0 | AJ41: =AJ29/AJ33 -> 0 | AM41: 0 | AN41: 0 | AO41: 0 | AP41: 0 | AQ41: 0 | AR41: 0 | AS41: 0 | AT41: 0 | AU41: 0 | AV41: 0 | AW41: 0 | AX41: 0 | BC41: 0 | BD41: 0 | BE41: 0 | BP41: =BP29/BP33 -> 0 | BT41: 0 | BU41: 0 | BV41: 0 | BW41: 0 | BX41: 0 | BY41: 0 | BZ41: 0 | CA41: 0 | CB41: 0 | CC41: 0 | CD41: 0 | CE41: 0 | CF41: 0 | CG41: 0 | CH41: 0 | CI41: 0 | CJ41: 0 | CK41: 0 | CL41: 0
B42: 2.17 | C42: Incurred Claims | D42: =D30/D33 -> 500.966883 | E42: 443.2396113 | F42: 421.8848358 | G42: 418.348104 | H42: 694.5835078 | I42: 476.6801476 | J42: 537.3803393 | K42: 560.9600054 | L42: 562.5765149 | M42: 563.3536957 | N42: 667.3379456 | O42: 596.1056241 | P42: 35.29713504 | U42: 520.1708154 | V42: 635.7883544 | W42: 306.0940331 | AD42: 381.1297849 | AI42: 1063.607831 | AJ42: =AJ30/AJ33 -> 677.9110178 | AM42: 14.26511111 | AN42: 522.7502627 | AO42: -19.77 | AP42: 709.5052288 | AQ42: 376.440362 | AR42: 1333.67097 | AS42: 300.9084892 | AT42: 207.3846835 | AU42: 1016.755165 | AV42: 1382.163333 | AW42: 412.38375 | AX42: 171.2186111 | BC42: 105.2379882 | BD42: 350.317988 | BE42: 101.180404 | BP42: =BP30/BP33 -> 1092.017076 | BT42: 20.34538462 | BU42: 314.5363333 | BV42: 815.947276 | BW42: 313.9933333 | BX42: 77.83253846 | BY42: 319.3375534 | BZ42: 4125.401544 | CA42: 165.3997207 | CB42: 181.6874902 | CC42: 261.0946322 | CD42: 477.8119157 | CE42: 430.6744915 | CF42: 23.89015385 | CG42: 337.5285503 | CH42: 745.5591667 | CI42: 209.036 | CJ42: 61.68666667 | CK42: 5.805918367 | CL42: 147.9518519
B43: 2.18 | C43: Risk Adjustment Transfer Amount | D43: =D31/D33 -> 7.775651889 | E43: 0 | F43: -43.79262315 | G43: -25.34109633 | H43: 91.28017539 | I43: 121.3257244 | J43: -28.12123205 | K43: 17.1630602 | L43: -0.1255147059 | M43: 52.11035266 | N43: 86.30403485 | O43: -2.837801463 | P43: -304.5722993 | U43: -74.52416923 | V43: 108.2091887 | W43: -50.18865563 | AD43: -201.2870968 | AI43: 220.9578169 | AJ43: =AJ31/AJ33 -> -105.4498223 | AM43: -222.3784444 | AN43: 39.19152166 | AO43: -522 | AP43: 3.683333333 | AQ43: -152.2281734 | AR43: 873.8032727 | AS43: -11.96540763 | AT43: -37.24 | AU43: 206.9939526 | AV43: 156.010398 | AW43: -442.524375 | AX43: -450.7921667 | BC43: -346.3295858 | BD43: -117.2252892 | BE43: -344.6284848 | BP43: =BP31/BP33 -> 717.2138136 | BT43: -399.7265385 | BU43: -297.123 | BV43: -368.5735842 | BW43: -187.3228912 | BX43: -40.44484615 | BY43: 70.57769596 | BZ43: 774.2679412 | CA43: -420.8075419 | CB43: -164.8426275 | CC43: 117.8849591 | CD43: -50.6927212 | CE43: 11.3015572 | CF43: -645.8609231 | CG43: -171.9743787 | CH43: -284.6904167 | CI43: -331.0908 | CJ43: 5899.291667 | CK43: -320.8620408 | CL43: -409.6595062
B44: 2.19 | C44: Premium | D44: =D32/D33 -> 658.9874897 | E44: 628.0989943 | F44: 652.2318576 | G44: 593.7319147 | H44: 604.3432378 | I44: 580.7466829 | J44: 761.7640981 | K44: 770.5061462 | L44: 754.090249 | M44: 722.3428482 | N44: 674.547631 | O44: 672.8228946 | P44: 544.7008029 | U44: 647.2362106 | V44: 617.6252378 | W44: 608.4378888 | AD44: 688.726129 | AI44: 868.2904447 | AJ44: =AJ32/AJ33 -> 869.0181519 | AM44: 477.4508889 | AN44: 864.4647049 | AO44: 797.39 | AP44: 678.2663629 | AQ44: 667.3418687 | AR44: 751.8538788 | AS44: 602.4746148 | AT44: 579.5129747 | AU44: 693.7804743 | AV44: 757.5352239 | AW44: 928.7430208 | AX44: 644.7601111 | BC44: 523.756642 | BD44: 575.058253 | BE44: 542.8227273 | BP44: =BP32/BP33 -> 643.4548305 | BT44: 479.895 | BU44: 397.2966667 | BV44: 569.0014337 | BW44: 593.9644898 | BX44: 397.364 | BY44: 420.1375059 | BZ44: 756.2102574 | CA44: 654.0767877 | CB44: 552.8138824 | CC44: 601.6396185 | CD44: 548.0318155 | CE44: 603.7735593 | CF44: 810.0915385 | CG44: 641.8524556 | CH44: 794.3841667 | CI44: 686.5482 | CJ44: 623.6383333 | CK44: 471.162449 | CL44: 605.2538272
C46: Section III: Plan Adjustment Factors
B47: 3.1 | C47: Plan ID (Standard Component ID) | E47: =E13 -> 36239KY0470137 | F47: 36239KY0980051 | G47: 36239KY0980052 | H47: 36239KY0980053 | I47: 36239KY0980054 | J47: 36239KY0980045 | K47: 36239KY0980046 | L47: 36239KY0980047 | M47: 36239KY0980048 | N47: 36239KY0980049 | O47: 36239KY0980050 | P47: 36239KY0990238 | Q47: 36239KY0990270 | R47: 36239KY0990273 | S47: 36239KY0990276 | T47: 36239KY0990274 | U47: 36239KY0990220 | V47: 36239KY0990257 | W47: 36239KY0990260 | X47: 36239KY0990263 | Y47: 36239KY0990265 | Z47: 36239KY0990266 | AA47: 36239KY0990269 | AB47: 36239KY0990272 | AC47: 36239KY0990271 | AD47: 36239KY0990237 | AE47: 36239KY0990261 | AF47: 36239KY0990262 | AG47: 36239KY0990275 | AH47: 36239KY0990278 | AI47: 36239KY0990190 | AJ47: 36239KY0990242 | AK47: =AK13 -> 36239KY0990277 | AL47: 36239KY0990281 | AM47: 36239KY0990199 | AN47: 36239KY0990165 | AO47: 36239KY0990216 | AP47: 36239KY0990225 | AQ47: 36239KY0990052 | AR47: 36239KY0990234 | AS47: 36239KY0990240 | AT47: 36239KY0990250 | AU47: 36239KY0990246 | AV47: 36239KY0990244 | AW47: 36239KY0990253 | AX47: 36239KY1170073 | AY47: 36239KY1170129 | AZ47: 36239KY1170126 | BA47: 36239KY1170130 | BB47: 36239KY1170132 | BC47: 36239KY1170056 | BD47: 36239KY1170115 | BE47: 36239KY1170117 | BF47: 36239KY1170120 | BG47: 36239KY1170122 | BH47: 36239KY1170123 | BI47: 36239KY1170131 | BJ47: 36239KY1170128 | BK47: 36239KY1170127 | BL47: 36239KY1170118 | BM47: 36239KY1170119 | BN47: 36239KY1170136 | BO47: 36239KY1170125 | BP47: 36239KY1170037 | BQ47: =BQ13 -> 36239KY1170075 | BR47: 36239KY1170135 | BS47: 36239KY1170133 | BT47: 36239KY1170032 | BU47: 36239KY1170074 | BV47: 36239KY1180033 | BW47: 36239KY1180034 | BX47: 36239KY1180035 | BY47: 36239KY1180036 | BZ47: 36239KY1180028 | CA47: 36239KY1180029 | CB47: 36239KY1180030 | CC47: 36239KY1180031 | CD47: 36239KY1180032 | CE47: 36239KY1180037 | CF47: 36239KY1200003 | CG47: 36239KY1200008 | CH47: 36239KY1200007 | CI47: 36239KY1200010 | CJ47: 36239KY1200002 | CK47: 36239KY1200001 | CL47: 36239KY1200005
B48: 3.2 | C48: Market Adjusted Index Rate | E48: ='Wksh 1 - Market Experience'!F46 -> 828.3943525
B49: 3.3 | C49: AV and Cost Sharing Design of Plan | E49: 0 | F49: 0.7409 | G49: 0.7444 | H49: 0.7241 | I49: 0.7078 | J49: 0.8571 | K49: 0.8506 | L49: 0.8477 | M49: 0.8567 | N49: 0.8371 | O49: 0.8199 | P49: 0.6229 | Q49: 0.5603 | R49: 0.6767 | S49: 0.5956 | T49: 0.6583 | U49: 0.7242 | V49: 0.731 | W49: 0.7556 | X49: 0.7525 | Y49: 0.7091 | Z49: 0.7345 | AA49: 0.6976 | AB49: 0.714 | AC49: 0.7506 | AD49: 0.8477 | AE49: 0.8209 | AF49: 0.8514 | AG49: 0.7651 | AH49: 0.8304 | AI49: 0.9869 | AJ49: 0.9955 | AK49: 0.9993 | AL49: 0.9777 | AM49: 0 | AN49: 0 | AO49: 0 | AP49: 0 | AQ49: 0 | AR49: 0 | AS49: 0 | AT49: 0 | AU49: 0 | AV49: 0 | AW49: 0 | AX49: 0.6228 | AY49: 0.6767 | AZ49: 0.5955 | BA49: 0.6583 | BB49: 0.5603 | BC49: 0.7242 | BD49: 0.731 | BE49: 0.7555 | BF49: 0.7525 | BG49: 0.7091 | BH49: 0.7345 | BI49: 0.6975 | BJ49: 0.714 | BK49: 0.7505 | BL49: 0.8514 | BM49: 0.8208 | BN49: 0.8303 | BO49: 0.765 | BP49: 0.9869 | BQ49: 0.9954 | BR49: 0.9777 | BS49: 0.9993 | BT49: 0 | BU49: 0 | BV49: 0.7409 | BW49: 0.7443 | BX49: 0.724 | BY49: 0.7078 | BZ49: 0.857 | CA49: 0.8506 | CB49: 0.8567 | CC49: 0.8371 | CD49: 0.8198 | CE49: 0.8477 | CF49: 0 | CG49: 0 | CH49: 0 | CI49: 0 | CJ49: 0 | CK49: 0 | CL49: 0
B50: 3.4 | C50: Provider Network Adjustment | E50: 0 | F50: 1.0093 | G50: 1.0093 | H50: 1.0093 | I50: 1.0093 | J50: 1.0093 | K50: 1.0093 | L50: 1.0093 | M50: 1.0093 | N50: 1.0093 | O50: 1.0093 | P50: 1.0093 | Q50: 1.0093 | R50: 1.0093 | S50: 1.0093 | T50: 1.0093 | U50: 1.0093 | V50: 1.0093 | W50: 1.0093 | X50: 1.0093 | Y50: 1.0093 | Z50: 1.0093 | AA50: 1.0093 | AB50: 1.0093 | AC50: 1.0093 | AD50: 1.0093 | AE50: 1.0093 | AF50: 1.0093 | AG50: 1.0093 | AH50: 1.0093 | AI50: 1.0093 | AJ50: 1.0093 | AK50: 1.0093 | AL50: 1.0093 | AM50: 0 | AN50: 0 | AO50: 0 | AP50: 0 | AQ50: 0 | AR50: 0 | AS50: 0 | AT50: 0 | AU50: 0 | AV50: 0 | AW50: 0 | AX50: 0.8734 | AY50: 0.8734 | AZ50: 0.8734 | BA50: 0.8734 | BB50: 0.8734 | BC50: 0.8734 | BD50: 0.8734 | BE50: 0.8734 | BF50: 0.8734 | BG50: 0.8734 | BH50: 0.8734 | BI50: 0.8734 | BJ50: 0.8734 | BK50: 0.8734 | BL50: 0.8734 | BM50: 0.8734 | BN50: 0.8734 | BO50: 0.8734 | BP50: 0.8734 | BQ50: 0.8734 | BR50: 0.8734 | BS50: 0.8734 | BT50: 0 | BU50: 0 | BV50: 0.8734 | BW50: 0.8734 | BX50: 0.8734 | BY50: 0.8734 | BZ50: 0.8734 | CA50: 0.8734 | CB50: 0.8734 | CC50: 0.8734 | CD50: 0.8734 | CE50: 0.8734 | CF50: 0 | CG50: 0 | CH50: 0 | CI50: 0 | CJ50: 0 | CK50: 0 | CL50: 0
B51: 3.5 | C51: Benefits in Addition to EHB | E51: 0 | F51: 1.0085 | G51: 1.0085 | H51: 1.0086 | I51: 1.0088 | J51: 1.0079 | K51: 1.0079 | L51: 1.0079 | M51: 1.0079 | N51: 1.008 | O51: 1.0081 | P51: 1.0095 | Q51: 1.0101 | R51: 1.009 | S51: 1.0097 | T51: 1.0091 | U51: 1.0086 | V51: 1.0086 | W51: 1.0084 | X51: 1.0084 | Y51: 1.0213 | Z51: 1.0086 | AA51: 1.0088 | AB51: 1.0087 | AC51: 1.0085 | AD51: 1.0079 | AE51: 1.0189 | AF51: 1.0184 | AG51: 1.0084 | AH51: 1.008 | AI51: 1.0073 | AJ51: 1.0073 | AK51: 1.0073 | AL51: 1.0073 | AM51: 0 | AN51: 0 | AO51: 0 | AP51: 0 | AQ51: 0 | AR51: 0 | AS51: 0 | AT51: 0 | AU51: 0 | AV51: 0 | AW51: 0 | AX51: 1.0094 | AY51: 1.009 | AZ51: 1.0097 | BA51: 1.0091 | BB51: 1.0101 | BC51: 1.0086 | BD51: 1.0086 | BE51: 1.0084 | BF51: 1.0084 | BG51: 1.0212 | BH51: 1.0085 | BI51: 1.0088 | BJ51: 1.0087 | BK51: 1.0084 | BL51: 1.0183 | BM51: 1.0188 | BN51: 1.008 | BO51: 1.0083 | BP51: 1.0073 | BQ51: 1.0073 | BR51: 1.0073 | BS51: 1.0072 | BT51: 0 | BU51: 0 | BV51: 1.0085 | BW51: 1.0085 | BX51: 1.0086 | BY51: 1.0087 | BZ51: 1.0078 | CA51: 1.0079 | CB51: 1.0078 | CC51: 1.0079 | CD51: 1.008 | CE51: 1.0079 | CF51: 0 | CG51: 0 | CH51: 0 | CI51: 0 | CJ51: 0 | CK51: 0 | CL51: 0
C52: Administrative Costs
B53: 3.6 | C53: Administrative Expense | E53: 0 | F53: 0.0671 | G53: 0.0671 | H53: 0.0671 | I53: 0.0671 | J53: 0.0671 | K53: 0.0671 | L53: 0.0671 | M53: 0.0671 | N53: 0.0671 | O53: 0.0671 | P53: 0.0671 | Q53: 0.0671 | R53: 0.0671 | S53: 0.0671 | T53: 0.0671 | U53: 0.0671 | V53: 0.0671 | W53: 0.0671 | X53: 0.0671 | Y53: 0.0671 | Z53: 0.0671 | AA53: 0.0671 | AB53: 0.0671 | AC53: 0.0671 | AD53: 0.0671 | AE53: 0.0671 | AF53: 0.0671 | AG53: 0.0671 | AH53: 0.0671 | AI53: 0.0671 | AJ53: 0.0671 | AK53: 0.0671 | AL53: 0.0671 | AM53: 0 | AN53: 0 | AO53: 0 | AP53: 0 | AQ53: 0 | AR53: 0 | AS53: 0 | AT53: 0 | AU53: 0 | AV53: 0 | AW53: 0 | AX53: 0.0671 | AY53: 0.0671 | AZ53: 0.0671 | BA53: 0.0671 | BB53: 0.0671 | BC53: 0.0671 | BD53: 0.0671 | BE53: 0.0671 | BF53: 0.0671 | BG53: 0.0671 | BH53: 0.0671 | BI53: 0.0671 | BJ53: 0.0671 | BK53: 0.0671 | BL53: 0.0671 | BM53: 0.0671 | BN53: 0.0671 | BO53: 0.0671 | BP53: 0.0671 | BQ53: 0.0671 | BR53: 0.0671 | BS53: 0.0671 | BT53: 0 | BU53: 0 | BV53: 0.0671 | BW53: 0.0671 | BX53: 0.0671 | BY53: 0.0671 | BZ53: 0.0671 | CA53: 0.0671 | CB53: 0.0671 | CC53: 0.0671 | CD53: 0.0671 | CE53: 0.0671 | CF53: 0 | CG53: 0 | CH53: 0 | CI53: 0 | CJ53: 0 | CK53: 0 | CL53: 0
B54: 3.7 | C54: Taxes and Fees | E54: 0 | F54: 0.0282 | G54: 0.0282 | H54: 0.0282 | I54: 0.0282 | J54: 0.0282 | K54: 0.0282 | L54: 0.0282 | M54: 0.0282 | N54: 0.0282 | O54: 0.0282 | P54: 0.0282 | Q54: 0.0282 | R54: 0.0282 | S54: 0.0282 | T54: 0.0282 | U54: 0.0282 | V54: 0.0282 | W54: 0.0282 | X54: 0.0282 | Y54: 0.0282 | Z54: 0.0282 | AA54: 0.0282 | AB54: 0.0282 | AC54: 0.0282 | AD54: 0.0282 | AE54: 0.0282 | AF54: 0.0282 | AG54: 0.0282 | AH54: 0.0282 | AI54: 0.0282 | AJ54: 0.0282 | AK54: 0.0282 | AL54: 0.0282 | AM54: 0 | AN54: 0 | AO54: 0 | AP54: 0 | AQ54: 0 | AR54: 0 | AS54: 0 | AT54: 0 | AU54: 0 | AV54: 0 | AW54: 0 | AX54: 0.0282 | AY54: 0.0282 | AZ54: 0.0282 | BA54: 0.0282 | BB54: 0.0282 | BC54: 0.0282 | BD54: 0.0282 | BE54: 0.0282 | BF54: 0.0282 | BG54: 0.0282 | BH54: 0.0282 | BI54: 0.0282 | BJ54: 0.0282 | BK54: 0.0282 | BL54: 0.0282 | BM54: 0.0282 | BN54: 0.0282 | BO54: 0.0282 | BP54: 0.0282 | BQ54: 0.0282 | BR54: 0.0282 | BS54: 0.0282 | BT54: 0 | BU54: 0 | BV54: 0.0282 | BW54: 0.0282 | BX54: 0.0282 | BY54: 0.0282 | BZ54: 0.0282 | CA54: 0.0282 | CB54: 0.0282 | CC54: 0.0282 | CD54: 0.0282 | CE54: 0.0282 | CF54: 0 | CG54: 0 | CH54: 0 | CI54: 0 | CJ54: 0 | CK54: 0 | CL54: 0
B55: 3.8 | C55: Profit & Risk Load | E55: 0 | F55: 0.0474 | G55: 0.0474 | H55: 0.0474 | I55: 0.0474 | J55: 0.0474 | K55: 0.0474 | L55: 0.0474 | M55: 0.0474 | N55: 0.0474 | O55: 0.0474 | P55: 0.0474 | Q55: 0.0474 | R55: 0.0474 | S55: 0.0474 | T55: 0.0474 | U55: 0.0474 | V55: 0.0474 | W55: 0.0474 | X55: 0.0474 | Y55: 0.0474 | Z55: 0.0474 | AA55: 0.0474 | AB55: 0.0474 | AC55: 0.0474 | AD55: 0.0474 | AE55: 0.0474 | AF55: 0.0474 | AG55: 0.0474 | AH55: 0.0474 | AI55: 0.0474 | AJ55: 0.0474 | AK55: 0.0474 | AL55: 0.0474 | AM55: 0 | AN55: 0 | AO55: 0 | AP55: 0 | AQ55: 0 | AR55: 0 | AS55: 0 | AT55: 0 | AU55: 0 | AV55: 0 | AW55: 0 | AX55: 0.0474 | AY55: 0.0474 | AZ55: 0.0474 | BA55: 0.0474 | BB55: 0.0474 | BC55: 0.0474 | BD55: 0.0474 | BE55: 0.0474 | BF55: 0.0474 | BG55: 0.0474 | BH55: 0.0474 | BI55: 0.0474 | BJ55: 0.0474 | BK55: 0.0474 | BL55: 0.0474 | BM55: 0.0474 | BN55: 0.0474 | BO55: 0.0474 | BP55: 0.0474 | BQ55: 0.0474 | BR55: 0.0474 | BS55: 0.0474 | BT55: 0 | BU55: 0 | BV55: 0.0474 | BW55: 0.0474 | BX55: 0.0474 | BY55: 0.0474 | BZ55: 0.0474 | CA55: 0.0474 | CB55: 0.0474 | CC55: 0.0474 | CD55: 0.0474 | CE55: 0.0474 | CF55: 0 | CG55: 0 | CH55: 0 | CI55: 0 | CJ55: 0 | CK55: 0 | CL55: 0
B56: 3.9 | C56: Catastrophic Adjustment | E56: 0 | F56: 1 | G56: 1 | H56: 1 | I56: 1 | J56: 1 | K56: 1 | L56: 1 | M56: 1 | N56: 1 | O56: 1 | P56: 1 | Q56: 1 | R56: 1 | S56: 1 | T56: 1 | U56: 1 | V56: 1 | W56: 1 | X56: 1 | Y56: 1 | Z56: 1 | AA56: 1 | AB56: 1 | AC56: 1 | AD56: 1 | AE56: 1 | AF56: 1 | AG56: 1 | AH56: 1 | AI56: 1 | AJ56: 1 | AK56: 1 | AL56: 1 | AM56: 0 | AN56: 0 | AO56: 0 | AP56: 0 | AQ56: 0 | AR56: 0 | AS56: 0 | AT56: 0 | AU56: 0 | AV56: 0 | AW56: 0 | AX56: 1 | AY56: 1 | AZ56: 1 | BA56: 1 | BB56: 1 | BC56: 1 | BD56: 1 | BE56: 1 | BF56: 1 | BG56: 1 | BH56: 1 | BI56: 1 | BJ56: 1 | BK56: 1 | BL56: 1 | BM56: 1 | BN56: 1 | BO56: 1 | BP56: 1 | BQ56: 1 | BR56: 1 | BS56: 1 | BT56: 0 | BU56: 0 | BV56: 1 | BW56: 1 | BX56: 1 | BY56: 1 | BZ56: 1 | CA56: 1 | CB56: 1 | CC56: 1 | CD56: 1 | CE56: 1 | CF56: 0 | CG56: 0 | CH56: 0 | CI56: 0 | CJ56: 0 | CK56: 0 | CL56: 0
B57: 3.10 | C57: Plan Adjusted Index Rate | E57: =($E$48*PRODUCT(E49:E51)*E56)/(1-SUM(E53:E55)) -> 0 | F57: 728.7189718 | G57: 732.1614288 | H57: 712.2657974 | I57: 696.3702528 | J57: 842.5070027 | K57: 836.1176717 | L57: 833.2670472 | M57: 842.1138131 | N57: 822.9291627 | O57: 806.1002951 | P57: 613.2664878 | Q57: 551.9624994 | R57: 665.904457 | S57: 586.5048723 | T57: 647.8621982 | U57: 712.3641631 | V57: 719.0530285 | W57: 743.1035999 | X57: 740.0548689 | Y57: 706.2938038 | Z57: 722.4958268 | AA57: 686.3349651 | AB57: 702.4004992 | AC57: 738.2594955 | AD57: 833.2670472 | AE57: 815.7299292 | AF57: 845.6226664 | AG57: 752.4464853 | AH57: 816.3425836 | AI57: 969.5195299 | AJ57: 977.9680738 | AK57: =($E$48*PRODUCT(AK49:AK51)*AK56)/(1-SUM(AK53:AK55)) -> 981.7011513 | AL57: 960.4815527 | AM57: 0 | AN57: 0 | AO57: 0 | AP57: 0 | AQ57: 0 | AR57: 0 | AS57: 0 | AT57: 0 | AU57: 0 | AV57: 0 | AW57: 0 | AX57: 530.5537611 | AY57: 576.241903 | AZ57: 507.448082 | BA57: 560.6289943 | BB57: 477.6419766 | BC57: 616.445913 | BD57: 622.2341376 | BE57: 642.961249 | BF57: 640.4081269 | BG57: 611.1330695 | BH57: 625.1513826 | BI57: 593.8363509 | BJ57: 607.8238344 | BK57: 638.7060455 | BL57: 731.6896013 | BM57: 705.7384469 | BN57: 706.3388002 | BO57: 650.9815734 | BP57: 838.9758817 | BQ57: =($E$48*PRODUCT(BQ49:BQ51)*BQ56)/(1-SUM(BQ53:BQ55)) -> 846.2018367 | BR57: 831.1548481 | BS57: 849.4329388 | BT57: 0 | BU57: 0 | BV57: 630.5985832 | BW57: 633.4924085 | BX57: 616.2756711 | BY57: 602.5458123 | BZ57: 728.9079202 | CA57: 723.536287 | CB57: 728.6527599 | CC57: 712.0529343 | CD57: 697.4064175 | CE57: 721.0694927 | CF57: 0 | CG57: 0 | CH57: 0 | CI57: 0 | CJ57: 0 | CK57: 0 | CL57: 0
B59: 3.11 | C59: Age Calibration Factor | D59: 0.6781959986 | E59: =IF(D59<>"", D59, "") -> 0.6781959986
B60: 3.12 | C60: Geographic Calibration Factor | D60: 0.99990001 | E60: =IF(D60<>"", D60, "") -> 0.99990001
B61: 3.13 | C61: Tobacco Calibration Factor | D61: 1 | E61: =IF(D61<>"", D61, "") -> 1
B62: 3.14 | C62: Calibrated Plan Adjusted Index Rate | E62: =E57*(PRODUCT($E$59:$E$61)) -> 0 | F62: 494.1648743 | G62: 496.4993015 | H62: 483.007513 | I62: 472.2282962 | J62: 571.3277453 | K62: 566.9949599 | L62: 565.061871 | M62: 571.0611123 | N62: 558.0514602 | O62: 546.6393307 | P62: 415.8732908 | Q62: 374.3013284 | R62: 451.5685813 | S62: 397.725485 | T62: 439.3336171 | U62: 483.0742176 | V62: 487.6101257 | W62: 503.9194961 | X62: 501.8520657 | Y62: 478.9577358 | Z62: 489.9447843 | AA62: 465.4230848 | AB62: 476.3175763 | AC62: 500.6345724 | AD62: 565.061871 | AE62: 553.169457 | AF62: 573.4405647 | AG62: 510.25517 | AH62: 553.5849152 | AI62: 657.4585199 | AJ62: 663.1877157 | AK62: =AK57*(PRODUCT($E$59:$E$61)) -> 665.7192208 | AL62: 651.3296129 | AM62: 0 | AN62: 0 | AO62: 0 | AP62: 0 | AQ62: 0 | AR62: 0 | AS62: 0 | AT62: 0 | AU62: 0 | AV62: 0 | AW62: 0 | AX62: 359.7834595 | AY62: 390.7658763 | AZ62: 344.1148473 | BA62: 380.1783228 | BB62: 323.9024871 | BC62: 418.0293487 | BD62: 421.9545069 | BE62: 436.0101454 | BF62: 434.2788013 | BG62: 414.4265597 | BH62: 423.9327729 | BI62: 402.6971673 | BJ62: 412.1824741 | BK62: 433.1245719 | BL62: 496.1793419 | BM62: 478.5811326 | BN62: 478.9882492 | BO62: 441.4489534 | BP62: 568.9331926 | BQ62: =BQ57*(PRODUCT($E$59:$E$61)) -> 573.8333164 | BR62: 563.6295293 | BS62: 576.0244178 | BT62: 0 | BU62: 0 | BV62: 427.6266732 | BW62: 429.5890577 | BX62: 417.9139028 | BY62: 408.6032986 | BZ62: 494.2930056 | CA62: 490.6503497 | CB62: 494.1199742 | CC62: 482.8631645 | CD62: 472.9309487 | CE62: 488.977547 | CF62: 0 | CG62: 0 | CH62: 0 | CI62: 0 | CJ62: 0 | CK62: 0 | CL62: 0
C64: Section IV: Projected Plan Level Information
B65: 4.1 | C65: Plan ID (Standard Component ID) | D65: Total | E65: =E13 -> 36239KY0470137 | F65: 36239KY0980051 | G65: 36239KY0980052 | H65: 36239KY0980053 | I65: 36239KY0980054 | J65: 36239KY0980045 | K65: 36239KY0980046 | L65: 36239KY0980047 | M65: 36239KY0980048 | N65: 36239KY0980049 | O65: 36239KY0980050 | P65: 36239KY0990238 | Q65: 36239KY0990270 | R65: 36239KY0990273 | S65: 36239KY0990276 | T65: 36239KY0990274 | U65: 36239KY0990220 | V65: 36239KY0990257 | W65: 36239KY0990260 | X65: 36239KY0990263 | Y65: 36239KY0990265 | Z65: 36239KY0990266 | AA65: 36239KY0990269 | AB65: 36239KY0990272 | AC65: 36239KY0990271 | AD65: 36239KY0990237 | AE65: 36239KY0990261 | AF65: 36239KY0990262 | AG65: 36239KY0990275 | AH65: 36239KY0990278 | AI65: 36239KY0990190 | AJ65: 36239KY0990242 | AK65: =AK13 -> 36239KY0990277 | AL65: 36239KY0990281 | AM65: 36239KY0990199 | AN65: 36239KY0990165 | AO65: 36239KY0990216 | AP65: 36239KY0990225 | AQ65: 36239KY0990052 | AR65: 36239KY0990234 | AS65: 36239KY0990240 | AT65: 36239KY0990250 | AU65: 36239KY0990246 | AV65: 36239KY0990244 | AW65: 36239KY0990253 | AX65: 36239KY1170073 | AY65: 36239KY1170129 | AZ65: 36239KY1170126 | BA65: 36239KY1170130 | BB65: 36239KY1170132 | BC65: 36239KY1170056 | BD65: 36239KY1170115 | BE65: 36239KY1170117 | BF65: 36239KY1170120 | BG65: 36239KY1170122 | BH65: 36239KY1170123 | BI65: 36239KY1170131 | BJ65: 36239KY1170128 | BK65: 36239KY1170127 | BL65: 36239KY1170118 | BM65: 36239KY1170119 | BN65: 36239KY1170136 | BO65: 36239KY1170125 | BP65: 36239KY1170037 | BQ65: =BQ13 -> 36239KY1170075 | BR65: 36239KY1170135 | BS65: 36239KY1170133 | BT65: 36239KY1170032 | BU65: 36239KY1170074 | BV65: 36239KY1180033 | BW65: 36239KY1180034 | BX65: 36239KY1180035 | BY65: 36239KY1180036 | BZ65: 36239KY1180028 | CA65: 36239KY1180029 | CB65: 36239KY1180030 | CC65: 36239KY1180031 | CD65: 36239KY1180032 | CE65: 36239KY1180037 | CF65: 36239KY1200003 | CG65: 36239KY1200008 | CH65: 36239KY1200007 | CI65: 36239KY1200010 | CJ65: 36239KY1200002 | CK65: 36239KY1200001 | CL65: 36239KY1200005
B66: 4.2 | C66: Allowed Claims | D66: =SUM(E66:XFD66) -> 127282532.5 | E66: =0 -> 0 | F66: =3658925.65 -> 3658925.65 | G66: =5531024.46 -> 5531024.46 | H66: =2958817.95 -> 2958817.95 | I66: =7411813.47 -> 7411813.47 | J66: =7422168.72 -> 7422168.72 | K66: =12608147.07 -> 12608147.07 | L66: =14143497.16 -> 14143497.16 | M66: =13913457.47 -> 13913457.47 | N66: =8542659.8 -> 8542659.8 | O66: =15951998.92 -> 15951998.92 | P66: =547440.52 -> 547440.52 | Q66: =110932.41 -> 110932.41 | R66: =113119.32 -> 113119.32 | S66: =112316.65 -> 112316.65 | T66: =112134.08 -> 112134.08 | U66: =2853747.25 -> 2853747.25 | V66: =4890433.28 -> 4890433.28 | W66: =5923927.47 -> 5923927.47 | X66: =173153.8 -> 173153.8 | Y66: =189945.34 -> 189945.34 | Z66: =308531.55 -> 308531.55 | AA66: =484014.12 -> 484014.12 | AB66: =478352.72 -> 478352.72 | AC66: =485157.71 -> 485157.71 | AD66: =51845.66 -> 51845.66 | AE66: =41607.17 -> 41607.17 | AF66: =21006.16 -> 21006.16 | AG66: =7454.3 -> 7454.3 | AH66: =7591.8 -> 7591.8 | AI66: =5287888.06 -> 5287888.06 | AJ66: =3543900.67 -> 3543900.67 | AK66: =882543.97 -> 882543.97 | AL66: =875523.05 -> 875523.05 | AM66: =0 -> 0 | AN66: =0 -> 0 | AO66: =0 -> 0 | AP66: =0 -> 0 | AQ66: =0 -> 0 | AR66: =0 -> 0 | AS66: =0 -> 0 | AT66: =0 -> 0 | AU66: =0 -> 0 | AV66: =0 -> 0 | AW66: =0 -> 0 | AX66: =150912.79 -> 150912.79 | AY66: =31183.74 -> 31183.74 | AZ66: =30962.21 -> 30962.21 | BA66: =30912.08 -> 30912.08 | BB66: =30580.49 -> 30580.49 | BC66: =290494.83 -> 290494.83 | BD66: =484935.6 -> 484935.6 | BE66: =454724.46 -> 454724.46 | BF66: =95525.33 -> 95525.33 | BG66: =95990.52 -> 95990.52 | BH66: =173765.53 -> 173765.53 | BI66: =53964.24 -> 53964.24 | BJ66: =53333.11 -> 53333.11 | BK66: =54091.97 -> 54091.97 | BL66: =105926.31 -> 105926.31 | BM66: =104904.37 -> 104904.37 | BN66: =20882.79 -> 20882.79 | BO66: =20504.48 -> 20504.48 | BP66: =238439.81 -> 238439.81 | BQ66: =61816.14 -> 61816.14 | BR66: =29789.96 -> 29789.96 | BS66: =30028.88 -> 30028.88 | BT66: =0 -> 0 | BU66: =0 -> 0 | BV66: =230046.52 -> 230046.52 | BW66: =313192.35 -> 313192.35 | BX66: =173351.4 -> 173351.4 | BY66: =309744.76 -> 309744.76 | BZ66: =172660.92 -> 172660.92 | CA66: =308255.26 -> 308255.26 | CB66: =309105.46 -> 309105.46 | CC66: =604904.11 -> 604904.11 | CD66: =1848369.7 -> 1848369.7 | CE66: =724154.7 -> 724154.7 | CF66: =0 -> 0 | CG66: =0 -> 0 | CH66: =0 -> 0 | CI66: =0 -> 0 | CJ66: =0 -> 0 | CK66: =0 -> 0 | CL66: =0 -> 0
B67: 4.3 | C67: Reinsurance | D67: =SUM(E67:XFD67) -> 0 | E67: =0 -> 0 | F67: =0 -> 0 | G67: =0 -> 0 | H67: =0 -> 0 | I67: =0 -> 0 | J67: =0 -> 0 | K67: =0 -> 0 | L67: =0 -> 0 | M67: =0 -> 0 | N67: =0 -> 0 | O67: =0 -> 0 | P67: =0 -> 0 | Q67: =0 -> 0 | R67: =0 -> 0 | S67: =0 -> 0 | T67: =0 -> 0 | U67: =0 -> 0 | V67: =0 -> 0 | W67: =0 -> 0 | X67: =0 -> 0 | Y67: =0 -> 0 | Z67: =0 -> 0 | AA67: =0 -> 0 | AB67: =0 -> 0 | AC67: =0 -> 0 | AD67: =0 -> 0 | AE67: =0 -> 0 | AF67: =0 -> 0 | AG67: =0 -> 0 | AH67: =0 -> 0 | AI67: =0 -> 0 | AJ67: =0 -> 0 | AK67: =0 -> 0 | AL67: =0 -> 0 | AM67: =0 -> 0 | AN67: =0 -> 0 | AO67: =0 -> 0 | AP67: =0 -> 0 | AQ67: =0 -> 0 | AR67: =0 -> 0 | AS67: =0 -> 0 | AT67: =0 -> 0 | AU67: =0 -> 0 | AV67: =0 -> 0 | AW67: =0 -> 0 | AX67: =0 -> 0 | AY67: =0 -> 0 | AZ67: =0 -> 0 | BA67: =0 -> 0 | BB67: =0 -> 0 | BC67: =0 -> 0 | BD67: =0 -> 0 | BE67: =0 -> 0 | BF67: =0 -> 0 | BG67: =0 -> 0 | BH67: =0 -> 0 | BI67: =0 -> 0 | BJ67: =0 -> 0 | BK67: =0 -> 0 | BL67: =0 -> 0 | BM67: =0 -> 0 | BN67: =0 -> 0 | BO67: =0 -> 0 | BP67: =0 -> 0 | BQ67: =0 -> 0 | BR67: =0 -> 0 | BS67: =0 -> 0 | BT67: =0 -> 0 | BU67: =0 -> 0 | BV67: =0 -> 0 | BW67: =0 -> 0 | BX67: =0 -> 0 | BY67: =0 -> 0 | BZ67: =0 -> 0 | CA67: =0 -> 0 | CB67: =0 -> 0 | CC67: =0 -> 0 | CD67: =0 -> 0 | CE67: =0 -> 0 | CF67: =0 -> 0 | CG67: =0 -> 0 | CH67: =0 -> 0 | CI67: =0 -> 0 | CJ67: =0 -> 0 | CK67: =0 -> 0 | CL67: =0 -> 0
B68: 4.4 | C68: Member Cost Sharing | D68: =SUM(E68:XFD68) -> 23184969.41 | E68: =0 -> 0 | F68: =906435.68 -> 906435.68 | G68: =1279633.65 -> 1279633.65 | H68: =738016.52 -> 738016.52 | I68: =1933079.51 -> 1933079.51 | J68: =1137627.47 -> 1137627.47 | K68: =1987872.7 -> 1987872.7 | L68: =2251732.58 -> 2251732.58 | M68: =2142265.02 -> 2142265.02 | N68: =1430489.54 -> 1430489.54 | O68: =2863521.6 -> 2863521.6 | P68: =181736.57 -> 181736.57 | Q68: =45095.45 -> 45095.45 | R68: =33692.14 -> 33692.14 | S68: =42362.09 -> 42362.09 | T68: =34851 -> 34851 | U68: =744405.53 -> 744405.53 | V68: =1181506.86 -> 1181506.86 | W68: =1414440.02 -> 1414440.02 | X68: =41514.51 -> 41514.51 | Y68: =49539.76 -> 49539.76 | Z68: =74186.43 -> 74186.43 | AA68: =143403.32 -> 143403.32 | AB68: =129750.45 -> 129750.45 | AC68: =118803.2 -> 118803.2 | AD68: =8254.15 -> 8254.15 | AE68: =7468.85 -> 7468.85 | AF68: =3311.95 -> 3311.95 | AG68: =1681.38 -> 1681.38 | AH68: =1328.5 -> 1328.5 | AI68: =378206.98 -> 378206.98 | AJ68: =239038.82 -> 239038.82 | AK68: =53641.2 -> 53641.2 | AL68: =64477.35 -> 64477.35 | AM68: =0 -> 0 | AN68: =0 -> 0 | AO68: =0 -> 0 | AP68: =0 -> 0 | AQ68: =0 -> 0 | AR68: =0 -> 0 | AS68: =0 -> 0 | AT68: =0 -> 0 | AU68: =0 -> 0 | AV68: =0 -> 0 | AW68: =0 -> 0 | AX68: =50099.27 -> 50099.27 | AY68: =9287.95 -> 9287.95 | AZ68: =11677.91 -> 11677.91 | BA68: =9607.4 -> 9607.4 | BB68: =12431.36 -> 12431.36 | BC68: =75776.14 -> 75776.14 | BD68: =117158.28 -> 117158.28 | BE68: =108573.32 -> 108573.32 | BF68: =22902.68 -> 22902.68 | BG68: =25035.34 -> 25035.34 | BH68: =41781.93 -> 41781.93 | BI68: =15988.48 -> 15988.48 | BJ68: =14466.3 -> 14466.3 | BK68: =13245.79 -> 13245.79 | BL68: =16700.95 -> 16700.95 | BM68: =18831.24 -> 18831.24 | BN68: =3654.32 -> 3654.32 | BO68: =4624.95 -> 4624.95 | BP68: =17053.99 -> 17053.99 | BQ68: =4169.55 -> 4169.55 | BR68: =2193.86 -> 2193.86 | BS68: =1825.16 -> 1825.16 | BT68: =0 -> 0 | BU68: =0 -> 0 | BV68: =56990.06 -> 56990.06 | BW68: =72458.81 -> 72458.81 | BX68: =43238.96 -> 43238.96 | BY68: =80784.72 -> 80784.72 | BZ68: =26464.48 -> 26464.48 | CA68: =48601.29 -> 48601.29 | CB68: =47593.19 -> 47593.19 | CC68: =101292.69 -> 101292.69 | CD68: =331798.33 -> 331798.33 | CE68: =115289.93 -> 115289.93 | CF68: =0 -> 0 | CG68: =0 -> 0 | CH68: =0 -> 0 | CI68: =0 -> 0 | CJ68: =0 -> 0 | CK68: =0 -> 0 | CL68: =0 -> 0
B69: 4.5 | C69: Cost Sharing Reduction | D69: =SUM(E69:XFD69) -> 0 | E69: =0 -> 0 | F69: =0 -> 0 | G69: =0 -> 0 | H69: =0 -> 0 | I69: =0 -> 0 | J69: =0 -> 0 | K69: =0 -> 0 | L69: =0 -> 0 | M69: =0 -> 0 | N69: =0 -> 0 | O69: =0 -> 0 | P69: =0 -> 0 | Q69: =0 -> 0 | R69: =0 -> 0 | S69: =0 -> 0 | T69: =0 -> 0 | U69: =0 -> 0 | V69: =0 -> 0 | W69: =0 -> 0 | X69: =0 -> 0 | Y69: =0 -> 0 | Z69: =0 -> 0 | AA69: =0 -> 0 | AB69: =0 -> 0 | AC69: =0 -> 0 | AD69: =0 -> 0 | AE69: =0 -> 0 | AF69: =0 -> 0 | AG69: =0 -> 0 | AH69: =0 -> 0 | AI69: =0 -> 0 | AJ69: =0 -> 0 | AK69: =0 -> 0 | AL69: =0 -> 0 | AM69: =0 -> 0 | AN69: =0 -> 0 | AO69: =0 -> 0 | AP69: =0 -> 0 | AQ69: =0 -> 0 | AR69: =0 -> 0 | AS69: =0 -> 0 | AT69: =0 -> 0 | AU69: =0 -> 0 | AV69: =0 -> 0 | AW69: =0 -> 0 | AX69: =0 -> 0 | AY69: =0 -> 0 | AZ69: =0 -> 0 | BA69: =0 -> 0 | BB69: =0 -> 0 | BC69: =0 -> 0 | BD69: =0 -> 0 | BE69: =0 -> 0 | BF69: =0 -> 0 | BG69: =0 -> 0 | BH69: =0 -> 0 | BI69: =0 -> 0 | BJ69: =0 -> 0 | BK69: =0 -> 0 | BL69: =0 -> 0 | BM69: =0 -> 0 | BN69: =0 -> 0 | BO69: =0 -> 0 | BP69: =0 -> 0 | BQ69: =0 -> 0 | BR69: =0 -> 0 | BS69: =0 -> 0 | BT69: =0 -> 0 | BU69: =0 -> 0 | BV69: =0 -> 0 | BW69: =0 -> 0 | BX69: =0 -> 0 | BY69: =0 -> 0 | BZ69: =0 -> 0 | CA69: =0 -> 0 | CB69: =0 -> 0 | CC69: =0 -> 0 | CD69: =0 -> 0 | CE69: =0 -> 0 | CF69: =0 -> 0 | CG69: =0 -> 0 | CH69: =0 -> 0 | CI69: =0 -> 0 | CJ69: =0 -> 0 | CK69: =0 -> 0 | CL69: =0 -> 0
B70: 4.6 | C70: Incurred Claims | D70: =D66-D67-D68-D69 -> 104097563.1 | E70: 0 | F70: 2752489.97 | G70: 4251390.81 | H70: 2220801.43 | I70: 5478733.96 | J70: 6284541.25 | K70: 10620274.37 | L70: 11891764.58 | M70: 11771192.45 | N70: 7112170.26 | O70: 13088477.32 | P70: 365703.95 | Q70: 65836.96 | R70: 79427.18 | S70: 69954.56 | T70: 77283.08 | U70: 2109341.72 | V70: 3708926.42 | W70: 4509487.45 | X70: 131639.29 | Y70: 140405.58 | Z70: 234345.12 | AA70: 340610.8 | AB70: 348602.27 | AC70: 366354.51 | AD70: 43591.51 | AE70: 34138.32 | AF70: 17694.21 | AG70: 5772.92 | AH70: 6263.3 | AI70: 4909681.08 | AJ70: =AJ66-AJ67-AJ68-AJ69 -> 3304861.85 | AK70: 828902.77 | AL70: 811045.7 | AM70: 0 | AN70: 0 | AO70: 0 | AP70: 0 | AQ70: 0 | AR70: 0 | AS70: 0 | AT70: 0 | AU70: 0 | AV70: 0 | AW70: 0 | AX70: 100813.52 | AY70: 21895.79 | AZ70: 19284.3 | BA70: 21304.68 | BB70: 18149.13 | BC70: 214718.69 | BD70: 367777.32 | BE70: 346151.14 | BF70: 72622.65 | BG70: 70955.18 | BH70: 131983.6 | BI70: 37975.76 | BJ70: 38866.81 | BK70: 40846.18 | BL70: 89225.36 | BM70: 86073.13 | BN70: 17228.47 | BO70: 15879.53 | BP70: =BP66-BP67-BP68-BP69 -> 221385.82 | BQ70: 57646.59 | BR70: 27596.1 | BS70: 28203.72 | BT70: 0 | BU70: 0 | BV70: 173056.46 | BW70: 240733.54 | BX70: 130112.44 | BY70: 228960.04 | BZ70: 146196.44 | CA70: 259653.97 | CB70: 261512.27 | CC70: 503611.42 | CD70: 1516571.37 | CE70: 608864.77 | CF70: 0 | CG70: 0 | CH70: 0 | CI70: 0 | CJ70: 0 | CK70: 0 | CL70: 0
B71: 4.7 | C71: Risk Adjustment Transfer Amount | D71: =SUM(E71:XFD71) -> 4944919.79 | E71: =0 -> 0 | F71: =130650.86 -> 130650.86 | G71: =201798.33 -> 201798.33 | H71: =105413.51 -> 105413.51 | I71: =260055.92 -> 260055.92 | J71: =298304.71 -> 298304.71 | K71: =504106.46 -> 504106.46 | L71: =564459.56 -> 564459.56 | M71: =558736.43 -> 558736.43 | N71: =337589.3 -> 337589.3 | O71: =621263.23 -> 621263.23 | P71: =17358.66 -> 17358.66 | Q71: =3125.05 -> 3125.05 | R71: =3770.12 -> 3770.12 | S71: =3320.49 -> 3320.49 | T71: =3668.35 -> 3668.35 | U71: =100122.91 -> 100122.91 | V71: =176049.48 -> 176049.48 | W71: =214049.25 -> 214049.25 | X71: =6248.45 -> 6248.45 | Y71: =6664.55 -> 6664.55 | Z71: =11123.53 -> 11123.53 | AA71: =16167.58 -> 16167.58 | AB71: =16546.9 -> 16546.9 | AC71: =17389.54 -> 17389.54 | AD71: =2069.13 -> 2069.13 | AE71: =1620.42 -> 1620.42 | AF71: =839.88 -> 839.88 | AG71: =274.02 -> 274.02 | AH71: =297.3 -> 297.3 | AI71: =233045.01 -> 233045.01 | AJ71: =156869.98 -> 156869.98 | AK71: =39345.05 -> 39345.05 | AL71: =38497.44 -> 38497.44 | AM71: =0 -> 0 | AN71: =0 -> 0 | AO71: =0 -> 0 | AP71: =0 -> 0 | AQ71: =0 -> 0 | AR71: =0 -> 0 | AS71: =0 -> 0 | AT71: =0 -> 0 | AU71: =0 -> 0 | AV71: =0 -> 0 | AW71: =0 -> 0 | AX71: =4847.58 -> 4847.58 | AY71: =1052.85 -> 1052.85 | AZ71: =927.28 -> 927.28 | BA71: =1024.43 -> 1024.43 | BB71: =872.69 -> 872.69 | BC71: =10324.66 -> 10324.66 | BD71: =17684.42 -> 17684.42 | BE71: =16644.53 -> 16644.53 | BF71: =3492.03 -> 3492.03 | BG71: =3411.85 -> 3411.85 | BH71: =6346.38 -> 6346.38 | BI71: =1826.05 -> 1826.05 | BJ71: =1868.89 -> 1868.89 | BK71: =1964.07 -> 1964.07 | BL71: =4290.36 -> 4290.36 | BM71: =4138.79 -> 4138.79 | BN71: =828.42 -> 828.42 | BO71: =763.56 -> 763.56 | BP71: =10645.24 -> 10645.24 | BQ71: =2771.91 -> 2771.91 | BR71: =1326.95 -> 1326.95 | BS71: =1356.16 -> 1356.16 | BT71: =0 -> 0 | BU71: =0 -> 0 | BV71: =8321.35 -> 8321.35 | BW71: =11575.57 -> 11575.57 | BX71: =6256.4 -> 6256.4 | BY71: =11009.45 -> 11009.45 | BZ71: =7029.8 -> 7029.8 | CA71: =12485.35 -> 12485.35 | CB71: =12574.71 -> 12574.71 | CC71: =24215.95 -> 24215.95 | CD71: =72923.7 -> 72923.7 | CE71: =29277.01 -> 29277.01 | CF71: =0 -> 0 | CG71: =0 -> 0 | CH71: =0 -> 0 | CI71: =0 -> 0 | CJ71: =0 -> 0 | CK71: =0 -> 0 | CL71: =0 -> 0
B72: 4.8 | C72: Premium | D72: =SUM(E72:XFD72) -> 115660333.2 | E72: =0 -> 0 | F72: =3058692.37 -> 3058692.37 | G72: =4723724.37 -> 4723724.37 | H72: =2467796.59 -> 2467796.59 | I72: =6087848.38 -> 6087848.38 | J72: =6983297.5 -> 6983297.5 | K72: =11800124.56 -> 11800124.56 | L72: =13213352.09 -> 13213352.09 | M72: =13079602.64 -> 13079602.64 | N72: =7902343.56 -> 7902343.56 | O72: =14543129.73 -> 14543129.73 | P72: =406257.71 -> 406257.71 | Q72: =72916.81 -> 72916.81 | R72: =87968.47 -> 87968.47 | S72: =77477.2 -> 77477.2 | T72: =85593.8 -> 85593.8 | U72: =2343414.12 -> 2343414.12 | V72: =4121139.47 -> 4121139.47 | W72: =5010937.97 -> 5010937.97 | X72: =145912.23 -> 145912.23 | Y72: =156211.09 -> 156211.09 | Z72: =260306.83 -> 260306.83 | AA72: =378455.83 -> 378455.83 | AB72: =387335.23 -> 387335.23 | AC72: =407059.91 -> 407059.91 | AD72: =48366.96 -> 48366.96 | AE72: =37551.64 -> 37551.64 | AF72: =19463.36 -> 19463.36 | AG72: =6776.81 -> 6776.81 | AH72: =7352.46 -> 7352.46 | AI72: =5454910.05 -> 5454910.05 | AJ72: =3671998.11 -> 3671998.11 | AK72: =920573.53 -> 920573.53 | AL72: =900741.58 -> 900741.58 | AM72: =0 -> 0 | AN72: =0 -> 0 | AO72: =0 -> 0 | AP72: =0 -> 0 | AQ72: =0 -> 0 | AR72: =0 -> 0 | AS72: =0 -> 0 | AT72: =0 -> 0 | AU72: =0 -> 0 | AV72: =0 -> 0 | AW72: =0 -> 0 | AX72: =112104.25 -> 112104.25 | AY72: =24461.81 -> 24461.81 | AZ72: =21544.27 -> 21544.27 | BA72: =23801.43 -> 23801.43 | BB72: =20276.07 -> 20276.07 | BC72: =238563.53 -> 238563.53 | BD72: =408489.26 -> 408489.26 | BE72: =384072.35 -> 384072.35 | BF72: =80929.15 -> 80929.15 | BG72: =79035.97 -> 79035.97 | BH72: =146285.2 -> 146285.2 | BI72: =42214.71 -> 42214.71 | BJ72: =43205.22 -> 43205.22 | BK72: =45405.53 -> 45405.53 | BL72: =98958.73 -> 98958.73 | BM72: =95462.63 -> 95462.63 | BN72: =18828.93 -> 18828.93 | BO72: =17354.69 -> 17354.69 | BP72: =245996.15 -> 245996.15 | BQ72: =64328.82 -> 64328.82 | BR72: =30362.48 -> 30362.48 | BS72: =31031.01 -> 31031.01 | BT72: =0 -> 0 | BU72: =0 -> 0 | BV72: =192368.98 -> 192368.98 | BW72: =267069.35 -> 267069.35 | BX72: =144211.3 -> 144211.3 | BY72: =254007.86 -> 254007.86 | BZ72: =162649.87 -> 162649.87 | CA72: =288575.53 -> 288575.53 | CB72: =290640.81 -> 290640.81 | CC72: =558920.42 -> 558920.42 | CD72: =1684279.52 -> 1684279.52 | CE72: =676264.44 -> 676264.44 | CF72: =0 -> 0 | CG72: =0 -> 0 | CH72: =0 -> 0 | CI72: =0 -> 0 | CJ72: =0 -> 0 | CK72: =0 -> 0 | CL72: =0 -> 0
B73: 4.9 | C73: Projected Member Months | D73: =SUM(E73:XFD73) -> 145140 | E73: =0 -> 0 | F73: =4194 -> 4194 | G73: =6447 -> 6447 | H73: =3462 -> 3462 | I73: =8736 -> 8736 | J73: =8283 -> 8283 | K73: =14102 -> 14102 | L73: =15845 -> 15845 | M73: =15520 -> 15520 | N73: =9595 -> 9595 | O73: =18029 -> 18029 | P73: =662 -> 662 | Q73: =132 -> 132 | R73: =132 -> 132 | S73: =132 -> 132 | T73: =132 -> 132 | U73: =3287 -> 3287 | V73: =5727 -> 5727 | W73: =6738 -> 6738 | X73: =197 -> 197 | Y73: =221 -> 221 | Z73: =360 -> 360 | AA73: =551 -> 551 | AB73: =551 -> 551 | AC73: =551 -> 551 | AD73: =58 -> 58 | AE73: =46 -> 46 | AF73: =23 -> 23 | AG73: =9 -> 9 | AH73: =9 -> 9 | AI73: =5622 -> 5622 | AJ73: =3752 -> 3752 | AK73: =937 -> 937 | AL73: =937 -> 937 | AM73: =0 -> 0 | AN73: =0 -> 0 | AO73: =0 -> 0 | AP73: =0 -> 0 | AQ73: =0 -> 0 | AR73: =0 -> 0 | AS73: =0 -> 0 | AT73: =0 -> 0 | AU73: =0 -> 0 | AV73: =0 -> 0 | AW73: =0 -> 0 | AX73: =214 -> 214 | AY73: =43 -> 43 | AZ73: =43 -> 43 | BA73: =43 -> 43 | BB73: =43 -> 43 | BC73: =392 -> 392 | BD73: =665 -> 665 | BE73: =605 -> 605 | BF73: =128 -> 128 | BG73: =131 -> 131 | BH73: =237 -> 237 | BI73: =72 -> 72 | BJ73: =72 -> 72 | BK73: =72 -> 72 | BL73: =137 -> 137 | BM73: =137 -> 137 | BN73: =27 -> 27 | BO73: =27 -> 27 | BP73: =297 -> 297 | BQ73: =77 -> 77 | BR73: =37 -> 37 | BS73: =37 -> 37 | BT73: =0 -> 0 | BU73: =0 -> 0 | BV73: =309 -> 309 | BW73: =427 -> 427 | BX73: =237 -> 237 | BY73: =427 -> 427 | BZ73: =226 -> 226 | CA73: =404 -> 404 | CB73: =404 -> 404 | CC73: =795 -> 795 | CD73: =2446 -> 2446 | CE73: =950 -> 950 | CF73: =0 -> 0 | CG73: =0 -> 0 | CH73: =0 -> 0 | CI73: =0 -> 0 | CJ73: =0 -> 0 | CK73: =0 -> 0 | CL73: =0 -> 0
B74: 4.10 | C74: Loss Ratio | D74: =D70/(D71+D72) -> 0.8631262779 | F74: 0.8630272039 | G74: 0.8631349542 | H74: 0.8630470672 | I74: 0.8630775924 | J74: 0.8630712127 | K74: 0.8631400331 | L74: 0.8631098234 | M74: 0.8630957472 | N74: 0.8631344916 | O74: 0.8631059189 | P74: 0.8632904106 | Q74: 0.8657989165 | R74: 0.8657990056 | S74: 0.8657990098 | T74: 0.8657989977 | U74: 0.8632329668 | V74: 0.8631052679 | W74: 0.86306191 | X74: 0.8651334234 | Y74: 0.8620416165 | Z74: 0.8633710687 | AA74: 0.8631287232 | AB74: 0.8631287302 | AC74: 0.8631287189 | AD74: 0.8642920179 | AE74: 0.8714966739 | AF74: 0.8714968645 | AG74: 0.818757508 | AH74: 0.8187577127 | AI74: 0.8631715666 | AJ74: =AJ70/(AJ71+AJ72) -> 0.863143303 | AK74: 0.8635136222 | AL74: 0.8635136347 | AX74: 0.8620089143 | AY74: 0.8581650706 | AZ74: 0.8581651021 | BA74: 0.858164833 | BB74: 0.8581652068 | BC74: 0.8627114448 | BD74: 0.8629752077 | BE74: 0.8638296944 | BF74: 0.8602420625 | BG74: 0.8606071088 | BH74: 0.864720132 | BI74: 0.8622866635 | BJ74: 0.8622867983 | BK74: 0.8622867831 | BL74: 0.8641757521 | BM74: 0.8641757316 | BN74: 0.8764390928 | BO74: 0.8764383977 | BP74: =BP70/(BP71+BP72) -> 0.8626271078 | BQ74: 0.8591052586 | BR74: 0.8708298003 | BS74: 0.8708300231 | BV74: 0.8623059218 | BW74: 0.8639437604 | BX74: 0.8647200695 | BY74: 0.8639437175 | BZ74: 0.8616025715 | CA74: 0.862463333 | CB74: 0.8624633396 | CC74: 0.8636254672 | CD74: 0.863059749 | CE74: 0.8629751944
C75: Per Member Per Month
B76: 4.11 | C76: Allowed Claims | D76: =D66/D73 -> 876.9638456 | F76: 872.4190868 | G76: 857.9222057 | H76: 854.6556759 | I76: 848.4218716 | J76: 896.0725244 | K76: 894.0680095 | L76: 892.6157879 | M76: 896.4856617 | N76: 890.3241063 | O76: 884.7966565 | P76: 826.949426 | Q76: 840.3970455 | R76: 856.9645455 | S76: 850.8837121 | T76: 849.5006061 | U76: 868.1920444 | V76: 853.925839 | W76: 879.1818744 | X76: 878.9532995 | Y76: 859.4811765 | Z76: 857.0320833 | AA76: 878.4285299 | AB76: 868.1537568 | AC76: 880.5040109 | AD76: 893.8906897 | AE76: 904.5036957 | AF76: 913.3113043 | AG76: 828.2555556 | AH76: 843.5333333 | AI76: 940.5706261 | AJ76: =AJ66/AJ73 -> 944.5364259 | AK76: 941.882572 | AL76: 934.3895945 | AX76: 705.1999533 | AY76: 725.2032558 | AZ76: 720.0513953 | BA76: 718.8855814 | BB76: 711.174186 | BC76: 741.0582398 | BD76: 729.2264662 | BE76: 751.6106777 | BF76: 746.2916406 | BG76: 732.7520611 | BH76: 733.1878903 | BI76: 749.5033333 | BJ76: 740.7376389 | BK76: 751.2773611 | BL76: 773.1847445 | BM76: 765.7253285 | BN76: 773.4366667 | BO76: 759.4251852 | BP76: =BP66/BP73 -> 802.8276431 | BQ76: 802.807013 | BR76: 805.1340541 | BS76: 811.5913514 | BV76: 744.4871197 | BW76: 733.4715457 | BX76: 731.4405063 | BY76: 725.3975644 | BZ76: 763.9863717 | CA76: 763.0080693 | CB76: 765.1125248 | CC76: 760.885673 | CD76: 755.6703598 | CE76: 762.2681053
B77: 4.12 | C77: Reinsurance | D77: =D67/D73 -> 0 | F77: 0 | G77: 0 | H77: 0 | I77: 0 | J77: 0 | K77: 0 | L77: 0 | M77: 0 | N77: 0 | O77: 0 | P77: 0 | Q77: 0 | R77: 0 | S77: 0 | T77: 0 | U77: 0 | V77: 0 | W77: 0 | X77: 0 | Y77: 0 | Z77: 0 | AA77: 0 | AB77: 0 | AC77: 0 | AD77: 0 | AE77: 0 | AF77: 0 | AG77: 0 | AH77: 0 | AI77: 0 | AJ77: =AJ67/AJ73 -> 0 | AK77: 0 | AL77: 0 | AX77: 0 | AY77: 0 | AZ77: 0 | BA77: 0 | BB77: 0 | BC77: 0 | BD77: 0 | BE77: 0 | BF77: 0 | BG77: 0 | BH77: 0 | BI77: 0 | BJ77: 0 | BK77: 0 | BL77: 0 | BM77: 0 | BN77: 0 | BO77: 0 | BP77: =BP67/BP73 -> 0 | BQ77: 0 | BR77: 0 | BS77: 0 | BV77: 0 | BW77: 0 | BX77: 0 | BY77: 0 | BZ77: 0 | CA77: 0 | CB77: 0 | CC77: 0 | CD77: 0 | CE77: 0
B78: 4.13 | C78: Member Cost Sharing | D78: =D68/D73 -> 159.742107 | F78: 216.1267716 | G78: 198.4851326 | H78: 213.1763489 | I78: 221.2774164 | J78: 137.3448594 | K78: 140.9638846 | L78: 142.1099766 | M78: 138.0325399 | N78: 149.0869766 | O78: 158.8286427 | P78: 274.5265408 | Q78: 341.632197 | R78: 255.2434848 | S78: 320.9249242 | T78: 264.0227273 | U78: 226.4695862 | V78: 206.3046726 | W78: 209.9198605 | X78: 210.7335533 | Y78: 224.16181 | Z78: 206.0734167 | AA78: 260.2601089 | AB78: 235.4817604 | AC78: 215.6137931 | AD78: 142.312931 | AE78: 162.3663043 | AF78: 143.9978261 | AG78: 186.82 | AH78: 147.6111111 | AI78: 67.2726752 | AJ78: =AJ68/AJ73 -> 63.70970682 | AK78: 57.24781217 | AL78: 68.81254002 | AX78: 234.1087383 | AY78: 215.9988372 | AZ78: 271.5793023 | BA78: 223.427907 | BB78: 289.1013953 | BC78: 193.3064796 | BD78: 176.1778647 | BE78: 179.4600331 | BF78: 178.9271875 | BG78: 191.1094656 | BH78: 176.2950633 | BI78: 222.0622222 | BJ78: 200.9208333 | BK78: 183.9693056 | BL78: 121.9047445 | BM78: 137.4543066 | BN78: 135.3451852 | BO78: 171.2944444 | BP78: =BP68/BP73 -> 57.42084175 | BQ78: 54.15 | BR78: 59.29351351 | BS78: 49.32864865 | BV78: 184.4338511 | BW78: 169.6927635 | BX78: 182.4428692 | BY78: 189.1913817 | BZ78: 117.099469 | CA78: 120.3002228 | CB78: 117.8049257 | CC78: 127.4121887 | CD78: 135.6493581 | CE78: 121.3578211
B79: 4.14 | C79: Cost Sharing Reduction | D79: =D69/D73 -> 0 | F79: 0 | G79: 0 | H79: 0 | I79: 0 | J79: 0 | K79: 0 | L79: 0 | M79: 0 | N79: 0 | O79: 0 | P79: 0 | Q79: 0 | R79: 0 | S79: 0 | T79: 0 | U79: 0 | V79: 0 | W79: 0 | X79: 0 | Y79: 0 | Z79: 0 | AA79: 0 | AB79: 0 | AC79: 0 | AD79: 0 | AE79: 0 | AF79: 0 | AG79: 0 | AH79: 0 | AI79: 0 | AJ79: =AJ69/AJ73 -> 0 | AK79: 0 | AL79: 0 | AX79: 0 | AY79: 0 | AZ79: 0 | BA79: 0 | BB79: 0 | BC79: 0 | BD79: 0 | BE79: 0 | BF79: 0 | BG79: 0 | BH79: 0 | BI79: 0 | BJ79: 0 | BK79: 0 | BL79: 0 | BM79: 0 | BN79: 0 | BO79: 0 | BP79: =BP69/BP73 -> 0 | BQ79: 0 | BR79: 0 | BS79: 0 | BV79: 0 | BW79: 0 | BX79: 0 | BY79: 0 | BZ79: 0 | CA79: 0 | CB79: 0 | CC79: 0 | CD79: 0 | CE79: 0
B80: 4.15 | C80: Incurred Claims | D80: =D70/D73 -> 717.2217386 | F80: 656.2923152 | G80: 659.4370731 | H80: 641.479327 | I80: 627.1444551 | J80: 758.7276651 | K80: 753.1041249 | L80: 750.5058113 | M80: 758.4531218 | N80: 741.2371298 | O80: 725.9680138 | P80: 552.4228852 | Q80: 498.7648485 | R80: 601.7210606 | S80: 529.9587879 | T80: 585.4778788 | U80: 641.7224582 | V80: 647.6211664 | W80: 669.262014 | X80: 668.2197462 | Y80: 635.3193665 | Z80: 650.9586667 | AA80: 618.1684211 | AB80: 632.6719964 | AC80: 664.8902178 | AD80: 751.5777586 | AE80: 742.1373913 | AF80: 769.3134783 | AG80: 641.4355556 | AH80: 695.9222222 | AI80: 873.2979509 | AJ80: =AJ70/AJ73 -> 880.8267191 | AK80: 884.6347599 | AL80: 865.5770544 | AX80: 471.091215 | AY80: 509.2044186 | AZ80: 448.472093 | BA80: 495.4576744 | BB80: 422.0727907 | BC80: 547.7517602 | BD80: 553.0486015 | BE80: 572.1506446 | BF80: 567.3644531 | BG80: 541.6425954 | BH80: 556.892827 | BI80: 527.4411111 | BJ80: 539.8168056 | BK80: 567.3080556 | BL80: 651.28 | BM80: 628.2710219 | BN80: 638.0914815 | BO80: 588.1307407 | BP80: =BP70/BP73 -> 745.4068013 | BQ80: 748.657013 | BR80: 745.8405405 | BS80: 762.2627027 | BV80: 560.0532686 | BW80: 563.7787822 | BX80: 548.9976371 | BY80: 536.2061827 | BZ80: 646.8869027 | CA80: 642.7078465 | CB80: 647.307599 | CC80: 633.4734843 | CD80: 620.0210016 | CE80: 640.9102842
B81: 4.16 | C81: Risk Adjustment Transfer Amount | D81: =D71/D73 -> 34.06999993 | F81: 31.15185026 | G81: 31.30112145 | H81: 30.44873195 | I81: 29.76830586 | J81: 36.01409031 | K81: 35.74716069 | L81: 35.62382834 | M81: 36.00105863 | N81: 35.18387702 | O81: 34.45910644 | P81: 26.22154079 | Q81: 23.67462121 | R81: 28.56151515 | S81: 25.15522727 | T81: 27.7905303 | U81: 30.46027076 | V81: 30.74026192 | W81: 31.76747551 | X81: 31.7180203 | Y81: 30.15633484 | Z81: 30.89869444 | AA81: 29.34225045 | AB81: 30.03067151 | AC81: 31.5599637 | AD81: 35.67465517 | AE81: 35.22652174 | AF81: 36.51652174 | AG81: 30.44666667 | AH81: 33.03333333 | AI81: 41.45233191 | AJ81: =AJ71/AJ73 -> 41.80969616 | AK81: 41.99044824 | AL81: 41.08584845 | AX81: 22.65224299 | AY81: 24.48488372 | AZ81: 21.56465116 | BA81: 23.82395349 | BB81: 20.29511628 | BC81: 26.33841837 | BD81: 26.59311278 | BE81: 27.51161983 | BF81: 27.28148438 | BG81: 26.04465649 | BH81: 26.77797468 | BI81: 25.36180556 | BJ81: 25.95680556 | BK81: 27.27875 | BL81: 31.31649635 | BM81: 30.21014599 | BN81: 30.68222222 | BO81: 28.28 | BP81: =BP71/BP73 -> 35.84255892 | BQ81: 35.99883117 | BR81: 35.86351351 | BS81: 36.65297297 | BV81: 26.92993528 | BW81: 27.10906323 | BX81: 26.39831224 | BY81: 25.78325527 | BZ81: 31.10530973 | CA81: 30.90433168 | CB81: 31.1255198 | CC81: 30.46031447 | CD81: 29.81345053 | CE81: 30.81790526
B82: 4.17 | C82: Premium | D82: =D72/D73 -> 796.8880614 | F82: 729.301948 | G82: 732.7011587 | H82: 712.8239717 | I82: 696.8690911 | J82: 843.0879512 | K82: 836.7695759 | L82: 833.9130382 | M82: 842.7579021 | N82: 823.5897405 | O82: 806.6520456 | P82: 613.6823414 | Q82: 552.4000758 | R82: 666.427803 | S82: 586.9484848 | T82: 648.4378788 | U82: 712.9340189 | V82: 719.598301 | W82: 743.6832844 | X82: 740.6712183 | Y82: 706.8375113 | Z82: 723.0745278 | AA82: 686.852686 | AB82: 702.9677495 | AC82: 738.7657169 | AD82: 833.9131034 | AE82: 816.34 | AF82: 846.2330435 | AG82: 752.9788889 | AH82: 816.94 | AI82: 970.2792689 | AJ82: =AJ72/AJ73 -> 978.6775346 | AK82: 982.4690822 | AL82: 961.303714 | AX82: 523.8516355 | AY82: 568.8793023 | AZ82: 501.0295349 | BA82: 553.5216279 | BB82: 471.5365116 | BC82: 608.5804337 | BD82: 614.2695639 | BE82: 634.8303306 | BF82: 632.2589844 | BG82: 603.3280153 | BH82: 617.2371308 | BI82: 586.3154167 | BJ82: 600.0725 | BK82: 630.6323611 | BL82: 722.3264964 | BM82: 696.8075182 | BN82: 697.3677778 | BO82: 642.7662963 | BP82: =BP72/BP73 -> 828.2698653 | BQ82: 835.4392208 | BR82: 820.6075676 | BS82: 838.6759459 | BV82: 622.5533333 | BW82: 625.4551522 | BX82: 608.4864979 | BY82: 594.8661827 | BZ82: 719.6896903 | CA82: 714.2958663 | CB82: 719.4079455 | CC82: 703.0445535 | CD82: 688.5852494 | CE82: 711.8573053

Sheet Wksh 3 - Rating Areas
A1: Rating Area Data Collection [assistive technology users, please reference cell A2 for instructions] | C1: Specify the total number of Rating Areas in your State by selecting the Create Rating Areas button or Ctrl + Shift + R.
A2: Press TAB and directional arrow keys to read through the document. If macros are disabled, press and hold the ALT key and press the F, then I, and then N key. After that, select the Enable All Content option by pressing enter. (note that you can also press the C key to select "Enable All Content") Instructions can be found in cells C1 through C4. If screen reader fails to announce a cell after performing a dropdown selection, please press F2 and then ESC to force the screen reader to resume. | C2: Select only the Rating Areas you are offering plans within and add a factor for each area.
C3: To validate, select the Validate button or Ctrl + Shift + I.
C4: To finalize, select the Finalize button or Ctrl + Shift + F.
A5: Rating Area | B5: Rating Factor
A6: Rating Area 1 | B6: 1.1088
A7: Rating Area 2 | B7: 1.0914
A8: Rating Area 3 | B8: 0.9542
A9: Rating Area 4 | B9: 0.9961
A10: Rating Area 5 | B10: 0.9488
A11: Rating Area 6 | B11: 1.1555
A12: Rating Area 7 | B12: 1.0426
A13: Rating Area 8 | B13: 1.1058

Sheet PlanTemplate (hidden)
A1: REBUILD | C1: Product-Plan Data Collection
C3: Company Legal Name: | D3: =IF('Wksh 1 - Market Experience'!C3<>"", 'Wksh 1 - Market Experience'!C3,"") -> Anthem Health Plans of Kentucky, Inc. | N3: State: | O3: =IF('Wksh 1 - Market Experience'!E4="","",'Wksh 1 - Market Experience'!E4) -> KY
C4: HIOS Issuer ID: | D4: =IF('Wksh 1 - Market Experience'!C4<>"", 'Wksh 1 - Market Experience'!C4,"") -> 36239 | N4: Market: | O4: =IF('Wksh 1 - Market Experience'!E5="","",'Wksh 1 - Market Experience'!E5) -> Small Group
C5: Effective Date of Rate Change(s): | D5: =IF('Wksh 1 - Market Experience'!#REF!<>"", 'Wksh 1 - Market Experience'!#REF!,"") -> 
C7: Product/Plan Level Calculations
B9: Field # | C9: Section I: General Product and Plan Information
B10: 1.1 | C10: Product Name | K10: Rating Area 1 | L10: AL | M10: New | N10: Platinum | O10: Yes
B11: 1.2 | C11: Product ID | K11: Rating Area 2 | L11: AK | M11: Renewing | N11: Gold | O11: No
B12: 1.3 | C12: Plan Name | K12: Rating Area 3 | L12: AZ | M12: Terminated | N12: Silver
B13: 1.4 | C13: Plan ID (Standard Component ID) | K13: Rating Area 4 | L13: AR | N13: Bronze
B14: 1.5 | C14: Metal | K14: Rating Area 5 | L14: CA | N14: Catastrophic
B15: 1.6 | C15: AV Metal Value | K15: Rating Area 6 | L15: CO | N15: Not Applicable
B16: 1.7 | C16: Plan Category | K16: Rating Area 7 | L16: CT
B17: 1.8 | C17: Plan Type | K17: Rating Area 8 | L17: DC
B18: 1.9 | C18: Exchange Plan? | L18: DE
B19: 1.10 | C19: Effective Date of Proposed Rates | L19: FL
B20: 1.11 | C20: Cumulative Rate Change % (over 12 mos prior) | L20: GA
B21: 1.12 | C21: Product Rate Increase % | L21: HI
B22: 1.13 | C22: Submission Level Rate Increase % | L22: ID
L23: IL
C24: Section II: Experience Period and Current Plan Level Information | L24: IN
B25: 2.1 | C25: Plan ID (Standard Component ID) | D25: Total | E25: =IF(E13<>"",E13,"") ->  | L25: IA
B26: 2.2 | C26: Allowed Claims | D26: =SUM(E26:XFD26) -> 0 | L26: KS
B27: 2.3 | C27: Reinsurance | D27: =SUM(E27:XFD27) -> 0 | L27: KY
B28: 2.4 | C28: Member Cost Sharing | D28: =SUM(E28:XFD28) -> 0 | L28: LA
B29: 2.5 | C29: Cost Sharing Reduction | D29: =SUM(E29:XFD29) -> 0 | L29: ME
B30: 2.6 | C30: Incurred Claims | D30: =D26-D27-D28-D29 -> 0 | E30: =E26-E27-E28-E29 -> 0 | L30: MD
B31: 2.7 | C31: Risk Adjustment Transfer Amount | D31: =SUM(E31:XFD31) -> 0 | L31: MA
B32: 2.8 | C32: Premium | D32: =SUM(E32:XFD32) -> 0 | L32: MI
B33: 2.9 | C33: Experience Period Member Months | D33: =SUM(E33:XFD33) -> 0 | L33: MN
B34: 2.10 | C34: Current Enrollment | D34: =SUM(E34:XFD34) -> 0 | L34: MS
B35: 2.11 | C35: Current Premium PMPM | D35: =SUMPRODUCT(E35:XFD35,E34:XFD34)/D34 ->  | L35: MO
B36: 2.12 | C36: Loss Ratio | D36: =D30/(D31+D32) ->  | E36: =E30/(E31+E32) ->  | L36: MT
C37: Per Member Per Month | L37: NE
B38: 2.13 | C38: Allowed Claims | D38: =D26/D33 ->  | E38: =E26/E33 ->  | L38: NV
B39: 2.14 | C39: Reinsurance | D39: =D27/D33 ->  | E39: =E27/E33 ->  | L39: NH
B40: 2.15 | C40: Member Cost Sharing | D40: =D28/D33 ->  | E40: =E28/E33 ->  | L40: NJ
B41: 2.16 | C41: Cost Sharing Reduction | D41: =D29/D33 ->  | E41: =E29/E33 ->  | L41: NM
B42: 2.17 | C42: Incurred Claims | D42: =D30/D33 ->  | E42: =E30/E33 ->  | L42: NY
B43: 2.18 | C43: Risk Adjustment Transfer Amount | D43: =D31/D33 ->  | E43: =E31/E33 ->  | L43: NC
B44: 2.19 | C44: Premium | D44: =D32/D33 ->  | E44: =E32/E33 ->  | L44: ND
L45: OH
C46: Section III: Plan Adjustment Factors | L46: OK
B47: 3.1 | C47: Plan ID (Standard Component ID) | E47: =IF(E13<>"",E13,"") ->  | L47: OR
B48: 3.2 | C48: Market Adjusted Index Rate | E48: ='Wksh 1 - Market Experience'!F46 -> 828.3943525 | L48: PA
B49: 3.3 | C49: AV and Cost Sharing Design of Plan | L49: RI
B50: 3.4 | C50: Provider Network Adjustment | L50: SC
B51: 3.5 | C51: Benefits in Addition to EHB | L51: SD
C52: Administrative Costs | L52: TN
B53: 3.6 | C53: Administrative Expense | L53: TX
B54: 3.7 | C54: Taxes and Fees | L54: UT
B55: 3.8 | C55: Profit & Risk Load | L55: VT
B56: 3.9 | C56: Catastrophic Adjustment | L56: VA
B57: 3.10 | C57: Plan Adjusted Index Rate | E57: =($E$48*PRODUCT(E49:E51)*E56)/(1-SUM(E53:E55)) -> 0 | L57: WA
L58: WV
B59: 3.11 | C59: Age Calibration Factor | E59: =IF(D59<>"", D59, "") ->  | L59: WI
B60: 3.12 | C60: Geographic Calibration Factor | E60: =IF(D60<>"", D60, "") ->  | L60: WY
B61: 3.13 | C61: Tobacco Calibration Factor | E61: =IF(D61<>"", D61, "") -> 
B62: 3.14 | C62: Calibrated Plan Adjusted Index Rate | E62: =E57*(PRODUCT($E$59:$E$61)) -> 0
C64: Section IV: Projected Plan Level Information
B65: 4.1 | C65: Plan ID (Standard Component ID) | D65: Total | E65: =IF(E13<>"",E13,"") -> 
B66: 4.2 | C66: Allowed Claims | D66: =SUM(E66:XFD66) -> 0
B67: 4.3 | C67: Reinsurance | D67: =SUM(E67:XFD67) -> 0
B68: 4.4 | C68: Member Cost Sharing | D68: =SUM(E68:XFD68) -> 0
B69: 4.5 | C69: Cost Sharing Reduction | D69: =SUM(E69:XFD69) -> 0
B70: 4.6 | C70: Incurred Claims | D70: =D66-D67-D68-D69 -> 0 | E70: =E66-E67-E68-E69 -> 0
B71: 4.7 | C71: Risk Adjustment Transfer Amount | D71: =SUM(E71:XFD71) -> 0
B72: 4.8 | C72: Premium | D72: =SUM(E72:XFD72) -> 0
B73: 4.9 | C73: Projected Member Months | D73: =SUM(E73:XFD73) -> 0
B74: 4.10 | C74: Loss Ratio | D74: =D70/(D71+D72) ->  | E74: =E70/(E71+E72) -> 
C75: Per Member Per Month
B76: 4.11 | C76: Allowed Claims | D76: =D66/D73 ->  | E76: =E66/E73 -> 
B77: 4.12 | C77: Reinsurance | D77: =D67/D73 ->  | E77: =E67/E73 -> 
B78: 4.13 | C78: Member Cost Sharing | D78: =D68/D73 ->  | E78: =E68/E73 -> 
B79: 4.14 | C79: Cost Sharing Reduction | D79: =D69/D73 ->  | E79: =E69/E73 -> 
B80: 4.15 | C80: Incurred Claims | D80: =D70/D73 ->  | E80: =E70/E73 -> 
B81: 4.16 | C81: Risk Adjustment Transfer Amount | D81: =D71/D73 ->  | E81: =E71/E73 -> 
B82: 4.17 | C82: Premium | D82: =D72/D73 ->  | E82: =E72/E73 -> 
